{"text_format":"1","workbook":"xlsx","n_sheets":3,"sheets":["DATA","Información","REG"],"not_rendered":{"charts":0,"images":9,"macros":1,"external_links":0,"defined_names":2,"comments":0,"pivot_tables":0},"unopened":[],"bounds":{"document_bytes":16777216,"sheet_cells":100000,"rows_first":2000,"rows_last":500,"rows_between":2000,"halvings":0,"cell_chars":16384,"cell_head_chars":4096},"cells_cut":0,"cells_raw":0,"read":"whole","date_system":"1900"}

{"sheet":"DATA","index":0,"n_rows":5015,"n_cols":261,"rows_kept":562,"cut":true,"hidden":false,"merged":[],"bounds":{"rows_first":250,"rows_last":62,"rows_between":250,"halvings":3}}
[null,null,null,null,null,"Usuario:",null,"",null,null,null,null,null,null,null,null,null,null,null,null,null,null,null,null,null,null,null,null,null,null,null,null,null,null,null,null,null,null,null,null,null,null,null,null,null,null,null,null,null,null,null,null,null,null,null,null,null,null,null,null,null,null,null,null,null,null,null,null,null,null,null,null,null,null,null,null,null,null,null,null,null,null,null,null,null,null,null,null,null,null,null,null,null,null,null,null,null,null,null,null,null,null,null,null,null,null,null,null,null,null,null,null,null,null,null,null,null,null,null,null,null,null,null,null,null,null,null,null,null,null,null,null,null,null,null,null,null,null,null,null,null,null,null,null,null,null,null,null,null,null,null,null,null,null,null,null,null,null,null,null,null,null,null,null,null,null,null,null,null,null,null,null,null,null,null,null,null,null,null,null,null,null,null,null,null,null,null,null,null,null,null,null,null,null,null,null,null,null,null,null,null,null,null,null,null,null,null,null,null,null,null,null,null,null,null,null,null,null,null,null,null,null,null,null,null,null,null,null,null,null,null,null,null,null,null,null,null,null,null,null,null,null,null,null,null,null,null,null,null,null,null,null,null,null,null,null,null,"2021-12-31",{"$f":"TODAY()","v":"2021-07-12"},{"$f":"IF(IX1>IY1,0,1)","v":0}]
[null,null,null,null,null,null,null,{"$f":"IF(H1=\"\",\"Producto sin activación\",\"Producto activado\")","v":"Producto sin activación"}]
[null,null,null,null,null,null,null,null,null,null,null,null,null,null,null,null,null,null,null,null,null,null,null,null,null,null,null,null,null,null,null,null,null,null,null,null,null,null,null,null,null,null,null,null,null,null,null,null,null,null,null,null,null,null,null,null,null,null,null,null,null,null,null,null,null,null,null,null,null,null,null,null,null,null,null,null,null,null,null,null,null,null,null,null,null,null,null,null,null,null,null,null,null,null,null,null,null,null,null,null,null,null,null,null,null,null,null,null,null,null,null,null,null,null,null,null,null,null,null,null,null,null,null,null,null,null,null,null,null,null,null,null,null,null,null,null,null,null,null,null,null,null,null,null,null,null,null,null,null,null,null,null,null,null,null,null,null,null,null,null,null,null,null,null,null,null,null,null,null,null,null,null,null,null,null,null,null,null,null,null,null,null,null,null,null,null,null,null,null,null,null,null,null,null,null,null,null,null,null,null,null,null,null,null,null,null,null,null,null,null,null,null,null,null,null,null,null,null,null,null,null,null,null,null,null,null,null,null,null,null,null,null,null,null,null,null,null,null,null,null,null,null,null,null,null,null,null,null,null,null,null,null,null,null,null,null,null,"X"]
[null,null,null,null,null,null,null,"X",null,null,null,null,null,null,null,null,null,null,null,null,null,null,null,null,null,null,null,null,null,null,null,null,null,null,null,null,null,null,null,null,null,null,null,null,null,null,null,null,null,null,null,null,null,null,null,null,null,null,null,null,null,null,null,null,null,null,null,null,null,null,null,null,null,null,null,null,null,null,null,null,null,null,null,null,null,null,null,null,null,null,null,null,null,null,null,null,null,null,null,null,null,null,null,null,null,null,null,null,null,null,null,null,null,null,null,null,null,null,null,null,null,null,null,null,null,null,null,null,null,null,null,null,null,null,null,null,null,null,null,null,null,null,null,null,null,null,null,null,null,null,null,null,null,null,null,null,null,null,null,null,null,null,null,null,null,null,null,null,null,null,null,null,null,null,null,null,null,null,null,null,null,null,null,null,null,null,null,null,null,null,null,null,null,null,null,null,null,null,null,null,null,null,null,null,null,null,null,null,null,null,null,null,null,null,null,null,null,null,null,null,null,null,null,null,null,null,null,null,null,null,null,null,null,null,null,null,null,null,null,null,null,null,null,null,null,null,null,null,null,null,null,null,null,null,null,null,null,"X"]
["NIT","DV","1er Apellido","2do Apellido","1er Nombre","Otros nombres","Razon social","ESTADO","AUD",null,null,null,null,"DV","DV-1","dv-2",null,null,null,null,null,null,null,null,null,null,null,null,null,null,null,null,null,null,null,null,null,null,null,null,null,null,null,null,null,null,null,null,null,null,null,null,null,null,null,null,null,null,null,null,null,null,null,null,null,null,null,null,null,null,null,null,null,null,null,null,null,null,null,null,null,null,null,null,null,null,null,null,null,null,null,null,null,null,null,null,null,null,null,null,null,null,null,null,null,null,null,null,null,null,null,null,null,null,null,null,null,null,null,null,null,null,null,null,null,null,null,null,null,null,null,null,null,null,null,null,null,null,null,null,null,null,null,null,null,null,null,null,null,null,null,null,null,null,null,null,null,null,null,null,null,null,null,null,null,null,null,null,null,null,null,null,null,null,null,null,null,null,null,null,null,null,null,null,null,null,null,null,null,null,null,null,null,null,null,null,null,null,null,null,null,null,null,null,null,null,null,null,null,null,null,null,null,null,null,null,null,null,null,null,null,null,null,null,null,null,null,null,null,null,null,null,null,null,null,null,null,null,null,null,null,null,null,null,null,null,null,null,null,null,null,null,null,null,null,null,null,"X"]
[null,{"$f":"+P6","v":""},null,null,null,null,null,null,{"$f":"IF(H6=\"REGISTRO ACTIVO\",1,0)","v":0},null,null,null,null,{"$f":"MOD((VALUE(MID(TEXT(A6,\"000000000000000\"),15,1))*3+VALUE(MID(TEXT(A6,\"000000000000000\"),14,1))*7+VALUE(MID(TEXT(A6,\"000000000000000\"),13,1))*13+VALUE(MID(TEXT(A6,\"000000000000000\"),12,1))*17+VALUE(MID(TEXT(A6,\"000000000000000\"),11,1))*19+VALUE(MID(TEXT(A6,\"000000000000000\"),10,1))*23+VALUE(MID(TEXT(A6,\"000000000000000\"),9,1))*29+VALUE(MID(TEXT(A6,\"000000000000000\"),8,1))*37+VALUE(MID(TEXT(A6,\"000000000000000\"),7,1))*41+VALUE(MID(TEXT(A6,\"000000000000000\"),6,1))*43+VALUE(MID(TEXT(A6,\"000000000000000\"),5,1))*47+VALUE(MID(TEXT(A6,\"000000000000000\"),4,1))*53+VALUE(MID(TEXT(A6,\"000000000000000\"),3,1))*59+VALUE(MID(TEXT(A6,\"000000000000000\"),2,1))*67+VALUE(MID(TEXT(A6,\"000000000000000\"),1,1))*71),11)","v":0},{"$f":"IF(N6=0,0,IF(N6=1,1,11-N6))","v":0},{"$f":"IF(H6=\"REGISTRO ACTIVO\",O6,\"\")","v":""},null,null,null,null,null,{"$f":"IF(H6=\"\",0,1)","v":0},{"$f":"IF(AND(A6>0,H6=\"\",$V$5007>0),\"NO\",\"\")","v":""},null,null,null,null,null,null,null,null,null,null,null,null,null,null,null,null,null,null,null,null,null,null,null,null,null,null,null,null,null,null,null,null,null,null,null,null,null,null,null,null,null,null,null,null,null,null,null,null,null,null,null,null,null,null,null,null,null,null,null,null,null,null,null,null,null,null,null,null,null,null,null,null,null,null,null,null,null,null,null,null,null,null,null,null,null,null,null,null,null,null,null,null,null,null,null,null,null,null,null,null,null,null,null,null,null,null,null,null,null,null,null,null,null,null,null,null,null,null,null,null,null,null,null,null,null,null,null,null,null,null,null,null,null,null,null,null,null,null,null,null,null,null,null,null,null,null,null,null,null,null,null,null,null,null,null,null,null,null,null,null,null,null,null,null,null,null,null,null,null,null,null,null,null,null,null,null,null,null,null,null,null,null,null,null,null,null,null,null,null,null,null,null,null,null,null,null,null,null,null,null,null,null,null,null,null,null,null,null,null,null,null,null,null,null,null,null,null,null,null,null,null,null,null,null,null,null,null,null,null,null,null,null,null,null,null,null,{"$f":"IFERROR(VLOOKUP(G1,$IZ$200:$JA$1631,2,0),\"\")","v":""},{"$f":"IF(H2=\"producto activado\",0,1)","v":1}]
[null,{"$f":"+P7","v":""},null,null,null,null,null,null,{"$f":"IF(H7=\"REGISTRO ACTIVO\",1,0)","v":0},null,null,null,null,0,{"$f":"IF(N7=0,0,IF(N7=1,1,11-N7))","v":0},"",null,null,null,null,null,{"$f":"IF(H7=\"\",0,1)","v":0},{"$f":"IF(AND(A7>0,H7=\"\",$V$5007>0),\"NO\",\"\")","v":""}]
[null,"",null,null,null,null,null,null,0,null,null,null,null,0,0,"",null,null,null,null,null,0,""]
[null,"",null,null,null,null,null,null,0,null,null,null,null,0,0,"",null,null,null,null,null,0,""]
[null,"",null,null,null,null,null,null,0,null,null,null,null,0,0,"",null,null,null,null,null,0,""]
[null,"",null,null,null,null,null,null,0,null,null,null,null,0,0,"",null,null,null,null,null,0,""]
[null,"",null,null,null,null,null,null,0,null,null,null,null,0,0,"",null,null,null,null,null,0,""]
[null,"",null,null,null,null,null,null,0,null,null,null,null,0,0,"",null,null,null,null,null,0,""]
[null,"",null,null,null,null,null,null,0,null,null,null,null,0,0,"",null,null,null,null,null,0,""]
[null,"",null,null,null,null,null,null,0,null,null,null,null,0,0,"",null,null,null,null,null,0,""]
[null,"",null,null,null,null,null,null,0,null,null,null,null,0,0,"",null,null,null,null,null,0,""]
[null,"",null,null,null,null,null,null,0,null,null,null,null,0,0,"",null,null,null,null,null,0,""]
[null,"",null,null,null,null,null,null,0,null,null,null,null,0,0,"",null,null,null,null,null,0,""]
[null,"",null,null,null,null,null,null,0,null,null,null,null,0,0,"",null,null,null,null,null,0,""]
[null,"",null,null,null,null,null,null,0,null,null,null,null,0,0,"",null,null,null,null,null,0,""]
[null,"",null,null,null,null,null,null,0,null,null,null,null,0,0,"",null,null,null,null,null,0,""]
[null,"",null,null,null,null,null,null,0,null,null,null,null,0,0,"",null,null,null,null,null,0,""]
[null,"",null,null,null,null,null,null,0,null,null,null,null,0,0,"",null,null,null,null,null,0,""]
[null,"",null,null,null,null,null,null,0,null,null,null,null,0,0,"",null,null,null,null,null,0,""]
[null,"",null,null,null,null,null,null,0,null,null,null,null,0,0,"",null,null,null,null,null,0,""]
[null,"",null,null,null,null,null,null,0,null,null,null,null,0,0,"",null,null,null,null,null,0,""]
[null,"",null,null,null,null,null,null,0,null,null,null,null,0,0,"",null,null,null,null,null,0,""]
[null,"",null,null,null,null,null,null,0,null,null,null,null,0,0,"",null,null,null,null,null,0,""]
[null,"",null,null,null,null,null,null,0,null,null,null,null,0,0,"",null,null,null,null,null,0,""]
[null,"",null,null,null,null,null,null,0,null,null,null,null,0,0,"",null,null,null,null,null,0,""]
[null,"",null,null,null,null,null,null,0,null,null,null,null,0,0,"",null,null,null,null,null,0,""]
[null,"",null,null,null,null,null,null,0,null,null,null,null,0,0,"",null,null,null,null,null,0,""]
[null,"",null,null,null,null,null,null,0,null,null,null,null,0,0,"",null,null,null,null,null,0,""]
[null,"",null,null,null,null,null,null,0,null,null,null,null,0,0,"",null,null,null,null,null,0,""]
[null,"",null,null,null,null,null,null,0,null,null,null,null,0,0,"",null,null,null,null,null,0,""]
[null,"",null,null,null,null,null,null,0,null,null,null,null,0,0,"",null,null,null,null,null,0,""]
[null,"",null,null,null,null,null,null,0,null,null,null,null,0,0,"",null,null,null,null,null,0,""]
[null,"",null,null,null,null,null,null,0,null,null,null,null,0,0,"",null,null,null,null,null,0,""]
[null,"",null,null,null,null,null,null,0,null,null,null,null,0,0,"",null,null,null,null,null,0,""]
[null,"",null,null,null,null,null,null,0,null,null,null,null,0,0,"",null,null,null,null,null,0,""]
[null,"",null,null,null,null,null,null,0,null,null,null,null,0,0,"",null,null,null,null,null,0,""]
[null,"",null,null,null,null,null,null,0,null,null,null,null,0,0,"",null,null,null,null,null,0,""]
[null,"",null,null,null,null,null,null,0,null,null,null,null,0,0,"",null,null,null,null,null,0,""]
[null,"",null,null,null,null,null,null,0,null,null,null,null,0,0,"",null,null,null,null,null,0,""]
[null,"",null,null,null,null,null,null,0,null,null,null,null,0,0,"",null,null,null,null,null,0,""]
[null,"",null,null,null,null,null,null,0,null,null,null,null,0,0,"",null,null,null,null,null,0,""]
[null,"",null,null,null,null,null,null,0,null,null,null,null,0,0,"",null,null,null,null,null,0,""]
[null,"",null,null,null,null,null,null,0,null,null,null,null,0,0,"",null,null,null,null,null,0,""]
[null,"",null,null,null,null,null,null,0,null,null,null,null,0,0,"",null,null,null,null,null,0,""]
[null,"",null,null,null,null,null,null,0,null,null,null,null,0,0,"",null,null,null,null,null,0,""]
[null,"",null,null,null,null,null,null,0,null,null,null,null,0,0,"",null,null,null,null,null,0,""]
[null,"",null,null,null,null,null,null,0,null,null,null,null,0,0,"",null,null,null,null,null,0,""]
[null,"",null,null,null,null,null,null,0,null,null,null,null,0,0,"",null,null,null,null,null,0,""]
[null,"",null,null,null,null,null,null,0,null,null,null,null,0,0,"",null,null,null,null,null,0,""]
[null,"",null,null,null,null,null,null,0,null,null,null,null,0,0,"",null,null,null,null,null,0,""]
[null,"",null,null,null,null,null,null,0,null,null,null,null,0,0,"",null,null,null,null,null,0,""]
[null,"",null,null,null,null,null,null,0,null,null,null,null,0,0,"",null,null,null,null,null,0,""]
[null,"",null,null,null,null,null,null,0,null,null,null,null,0,0,"",null,null,null,null,null,0,""]
[null,"",null,null,null,null,null,null,0,null,null,null,null,0,0,"",null,null,null,null,null,0,""]
[null,"",null,null,null,null,null,null,0,null,null,null,null,0,0,"",null,null,null,null,null,0,""]
[null,"",null,null,null,null,null,null,0,null,null,null,null,0,0,"",null,null,null,null,null,0,""]
[null,"",null,null,null,null,null,null,0,null,null,null,null,0,0,"",null,null,null,null,null,0,""]
[null,"",null,null,null,null,null,null,0,null,null,null,null,0,0,"",null,null,null,null,null,0,""]
[null,"",null,null,null,null,null,null,0,null,null,null,null,0,0,"",null,null,null,null,null,0,""]
[null,"",null,null,null,null,null,null,0,null,null,null,null,0,0,"",null,null,null,null,null,0,""]
[null,"",null,null,null,null,null,null,0,null,null,null,null,0,0,"",null,null,null,null,null,0,""]
[null,"",null,null,null,null,null,null,0,null,null,null,null,0,0,"",null,null,null,null,null,0,""]
[null,"",null,null,null,null,null,null,0,null,null,null,null,0,0,"",null,null,null,null,null,0,""]
[null,"",null,null,null,null,null,null,0,null,null,null,null,0,0,"",null,null,null,null,null,0,""]
[null,"",null,null,null,null,null,null,0,null,null,null,null,{"$f":"MOD((VALUE(MID(TEXT(A70,\"000000000000000\"),15,1))*3+VALUE(MID(TEXT(A70,\"000000000000000\"),14,1))*7+VALUE(MID(TEXT(A70,\"000000000000000\"),13,1))*13+VALUE(MID(TEXT(A70,\"000000000000000\"),12,1))*17+VALUE(MID(TEXT(A70,\"000000000000000\"),11,1))*19+VALUE(MID(TEXT(A70,\"000000000000000\"),10,1))*23+VALUE(MID(TEXT(A70,\"000000000000000\"),9,1))*29+VALUE(MID(TEXT(A70,\"000000000000000\"),8,1))*37+VALUE(MID(TEXT(A70,\"000000000000000\"),7,1))*41+VALUE(MID(TEXT(A70,\"000000000000000\"),6,1))*43+VALUE(MID(TEXT(A70,\"000000000000000\"),5,1))*47+VALUE(MID(TEXT(A70,\"000000000000000\"),4,1))*53+VALUE(MID(TEXT(A70,\"000000000000000\"),3,1))*59+VALUE(MID(TEXT(A70,\"000000000000000\"),2,1))*67+VALUE(MID(TEXT(A70,\"000000000000000\"),1,1))*71),11)","v":0},0,{"$f":"IF(H70=\"REGISTRO ACTIVO\",O70,\"\")","v":""},null,null,null,null,null,0,""]
[null,{"$f":"+P71","v":""},null,null,null,null,null,null,{"$f":"IF(H71=\"REGISTRO ACTIVO\",1,0)","v":0},null,null,null,null,0,{"$f":"IF(N71=0,0,IF(N71=1,1,11-N71))","v":0},"",null,null,null,null,null,{"$f":"IF(H71=\"\",0,1)","v":0},{"$f":"IF(AND(A71>0,H71=\"\",$V$5007>0),\"NO\",\"\")","v":""}]
[null,"",null,null,null,null,null,null,0,null,null,null,null,0,0,"",null,null,null,null,null,0,""]
[null,"",null,null,null,null,null,null,0,null,null,null,null,0,0,"",null,null,null,null,null,0,""]
[null,"",null,null,null,null,null,null,0,null,null,null,null,0,0,"",null,null,null,null,null,0,""]
[null,"",null,null,null,null,null,null,0,null,null,null,null,0,0,"",null,null,null,null,null,0,""]
[null,"",null,null,null,null,null,null,0,null,null,null,null,0,0,"",null,null,null,null,null,0,""]
[null,"",null,null,null,null,null,null,0,null,null,null,null,0,0,"",null,null,null,null,null,0,""]
[null,"",null,null,null,null,null,null,0,null,null,null,null,0,0,"",null,null,null,null,null,0,""]
[null,"",null,null,null,null,null,null,0,null,null,null,null,0,0,"",null,null,null,null,null,0,""]
[null,"",null,null,null,null,null,null,0,null,null,null,null,0,0,"",null,null,null,null,null,0,""]
[null,"",null,null,null,null,null,null,0,null,null,null,null,0,0,"",null,null,null,null,null,0,""]
[null,"",null,null,null,null,null,null,0,null,null,null,null,0,0,"",null,null,null,null,null,0,""]
[null,"",null,null,null,null,null,null,0,null,null,null,null,0,0,"",null,null,null,null,null,0,""]
[null,"",null,null,null,null,null,null,0,null,null,null,null,0,0,"",null,null,null,null,null,0,""]
[null,"",null,null,null,null,null,null,0,null,null,null,null,0,0,"",null,null,null,null,null,0,""]
[null,"",null,null,null,null,null,null,0,null,null,null,null,0,0,"",null,null,null,null,null,0,""]
[null,"",null,null,null,null,null,null,0,null,null,null,null,0,0,"",null,null,null,null,null,0,""]
[null,"",null,null,null,null,null,null,0,null,null,null,null,0,0,"",null,null,null,null,null,0,""]
[null,"",null,null,null,null,null,null,0,null,null,null,null,0,0,"",null,null,null,null,null,0,""]
[null,"",null,null,null,null,null,null,0,null,null,null,null,0,0,"",null,null,null,null,null,0,""]
[null,"",null,null,null,null,null,null,0,null,null,null,null,0,0,"",null,null,null,null,null,0,""]
[null,"",null,null,null,null,null,null,0,null,null,null,null,0,0,"",null,null,null,null,null,0,""]
[null,"",null,null,null,null,null,null,0,null,null,null,null,0,0,"",null,null,null,null,null,0,""]
[null,"",null,null,null,null,null,null,0,null,null,null,null,0,0,"",null,null,null,null,null,0,""]
[null,"",null,null,null,null,null,null,0,null,null,null,null,0,0,"",null,null,null,null,null,0,""]
[null,"",null,null,null,null,null,null,0,null,null,null,null,0,0,"",null,null,null,null,null,0,""]
[null,"",null,null,null,null,null,null,0,null,null,null,null,0,0,"",null,null,null,null,null,0,""]
[null,"",null,null,null,null,null,null,0,null,null,null,null,0,0,"",null,null,null,null,null,0,""]
[null,"",null,null,null,null,null,null,0,null,null,null,null,0,0,"",null,null,null,null,null,0,""]
[null,"",null,null,null,null,null,null,0,null,null,null,null,0,0,"",null,null,null,null,null,0,""]
[null,"",null,null,null,null,null,null,0,null,null,null,null,0,0,"",null,null,null,null,null,0,""]
[null,"",null,null,null,null,null,null,0,null,null,null,null,0,0,"",null,null,null,null,null,0,""]
[null,"",null,null,null,null,null,null,0,null,null,null,null,0,0,"",null,null,null,null,null,0,""]
[null,"",null,null,null,null,null,null,0,null,null,null,null,0,0,"",null,null,null,null,null,0,""]
[null,"",null,null,null,null,null,null,0,null,null,null,null,0,0,"",null,null,null,null,null,0,""]
[null,"",null,null,null,null,null,null,0,null,null,null,null,0,0,"",null,null,null,null,null,0,""]
[null,"",null,null,null,null,null,null,0,null,null,null,null,0,0,"",null,null,null,null,null,0,""]
[null,"",null,null,null,null,null,null,0,null,null,null,null,0,0,"",null,null,null,null,null,0,""]
[null,"",null,null,null,null,null,null,0,null,null,null,null,0,0,"",null,null,null,null,null,0,""]
[null,"",null,null,null,null,null,null,0,null,null,null,null,0,0,"",null,null,null,null,null,0,""]
[null,"",null,null,null,null,null,null,0,null,null,null,null,0,0,"",null,null,null,null,null,0,""]
[null,"",null,null,null,null,null,null,0,null,null,null,null,0,0,"",null,null,null,null,null,0,""]
[null,"",null,null,null,null,null,null,0,null,null,null,null,0,0,"",null,null,null,null,null,0,""]
[null,"",null,null,null,null,null,null,0,null,null,null,null,0,0,"",null,null,null,null,null,0,""]
[null,"",null,null,null,null,null,null,0,null,null,null,null,0,0,"",null,null,null,null,null,0,""]
[null,"",null,null,null,null,null,null,0,null,null,null,null,0,0,"",null,null,null,null,null,0,""]
[null,"",null,null,null,null,null,null,0,null,null,null,null,0,0,"",null,null,null,null,null,0,""]
[null,"",null,null,null,null,null,null,0,null,null,null,null,0,0,"",null,null,null,null,null,0,""]
[null,"",null,null,null,null,null,null,0,null,null,null,null,0,0,"",null,null,null,null,null,0,""]
[null,"",null,null,null,null,null,null,0,null,null,null,null,0,0,"",null,null,null,null,null,0,""]
[null,"",null,null,null,null,null,null,0,null,null,null,null,0,0,"",null,null,null,null,null,0,""]
[null,"",null,null,null,null,null,null,0,null,null,null,null,0,0,"",null,null,null,null,null,0,""]
[null,"",null,null,null,null,null,null,0,null,null,null,null,0,0,"",null,null,null,null,null,0,""]
[null,"",null,null,null,null,null,null,0,null,null,null,null,0,0,"",null,null,null,null,null,0,""]
[null,"",null,null,null,null,null,null,0,null,null,null,null,0,0,"",null,null,null,null,null,0,""]
[null,"",null,null,null,null,null,null,0,null,null,null,null,0,0,"",null,null,null,null,null,0,""]
[null,"",null,null,null,null,null,null,0,null,null,null,null,0,0,"",null,null,null,null,null,0,""]
[null,"",null,null,null,null,null,null,0,null,null,null,null,0,0,"",null,null,null,null,null,0,""]
[null,"",null,null,null,null,null,null,0,null,null,null,null,0,0,"",null,null,null,null,null,0,""]
[null,"",null,null,null,null,null,null,0,null,null,null,null,0,0,"",null,null,null,null,null,0,""]
[null,"",null,null,null,null,null,null,0,null,null,null,null,0,0,"",null,null,null,null,null,0,""]
[null,"",null,null,null,null,null,null,0,null,null,null,null,0,0,"",null,null,null,null,null,0,""]
[null,"",null,null,null,null,null,null,0,null,null,null,null,0,0,"",null,null,null,null,null,0,""]
[null,"",null,null,null,null,null,null,0,null,null,null,null,{"$f":"MOD((VALUE(MID(TEXT(A134,\"000000000000000\"),15,1))*3+VALUE(MID(TEXT(A134,\"000000000000000\"),14,1))*7+VALUE(MID(TEXT(A134,\"000000000000000\"),13,1))*13+VALUE(MID(TEXT(A134,\"000000000000000\"),12,1))*17+VALUE(MID(TEXT(A134,\"000000000000000\"),11,1))*19+VALUE(MID(TEXT(A134,\"000000000000000\"),10,1))*23+VALUE(MID(TEXT(A134,\"000000000000000\"),9,1))*29+VALUE(MID(TEXT(A134,\"000000000000000\"),8,1))*37+VALUE(MID(TEXT(A134,\"000000000000000\"),7,1))*41+VALUE(MID(TEXT(A134,\"000000000000000\"),6,1))*43+VALUE(MID(TEXT(A134,\"000000000000000\"),5,1))*47+VALUE(MID(TEXT(A134,\"000000000000000\"),4,1))*53+VALUE(MID(TEXT(A134,\"000000000000000\"),3,1))*59+VALUE(MID(TEXT(A134,\"000000000000000\"),2,1))*67+VALUE(MID(TEXT(A134,\"000000000000000\"),1,1))*71),11)","v":0},0,{"$f":"IF(H134=\"REGISTRO ACTIVO\",O134,\"\")","v":""},null,null,null,null,null,0,""]
[null,{"$f":"+P135","v":""},null,null,null,null,null,null,{"$f":"IF(H135=\"REGISTRO ACTIVO\",1,0)","v":0},null,null,null,null,0,{"$f":"IF(N135=0,0,IF(N135=1,1,11-N135))","v":0},"",null,null,null,null,null,{"$f":"IF(H135=\"\",0,1)","v":0},{"$f":"IF(AND(A135>0,H135=\"\",$V$5007>0),\"NO\",\"\")","v":""}]
[null,"",null,null,null,null,null,null,0,null,null,null,null,0,0,"",null,null,null,null,null,0,""]
[null,"",null,null,null,null,null,null,0,null,null,null,null,0,0,"",null,null,null,null,null,0,""]
[null,"",null,null,null,null,null,null,0,null,null,null,null,0,0,"",null,null,null,null,null,0,""]
[null,"",null,null,null,null,null,null,0,null,null,null,null,0,0,"",null,null,null,null,null,0,""]
[null,"",null,null,null,null,null,null,0,null,null,null,null,0,0,"",null,null,null,null,null,0,""]
[null,"",null,null,null,null,null,null,0,null,null,null,null,0,0,"",null,null,null,null,null,0,""]
[null,"",null,null,null,null,null,null,0,null,null,null,null,0,0,"",null,null,null,null,null,0,""]
[null,"",null,null,null,null,null,null,0,null,null,null,null,0,0,"",null,null,null,null,null,0,""]
[null,"",null,null,null,null,null,null,0,null,null,null,null,0,0,"",null,null,null,null,null,0,""]
[null,"",null,null,null,null,null,null,0,null,null,null,null,0,0,"",null,null,null,null,null,0,""]
[null,"",null,null,null,null,null,null,0,null,null,null,null,0,0,"",null,null,null,null,null,0,""]
[null,"",null,null,null,null,null,null,0,null,null,null,null,0,0,"",null,null,null,null,null,0,""]
[null,"",null,null,null,null,null,null,0,null,null,null,null,0,0,"",null,null,null,null,null,0,""]
[null,"",null,null,null,null,null,null,0,null,null,null,null,0,0,"",null,null,null,null,null,0,""]
[null,"",null,null,null,null,null,null,0,null,null,null,null,0,0,"",null,null,null,null,null,0,""]
[null,"",null,null,null,null,null,null,0,null,null,null,null,0,0,"",null,null,null,null,null,0,""]
[null,"",null,null,null,null,null,null,0,null,null,null,null,0,0,"",null,null,null,null,null,0,""]
[null,"",null,null,null,null,null,null,0,null,null,null,null,0,0,"",null,null,null,null,null,0,""]
[null,"",null,null,null,null,null,null,0,null,null,null,null,0,0,"",null,null,null,null,null,0,""]
[null,"",null,null,null,null,null,null,0,null,null,null,null,0,0,"",null,null,null,null,null,0,""]
[null,"",null,null,null,null,null,null,0,null,null,null,null,0,0,"",null,null,null,null,null,0,""]
[null,"",null,null,null,null,null,null,0,null,null,null,null,0,0,"",null,null,null,null,null,0,""]
[null,"",null,null,null,null,null,null,0,null,null,null,null,0,0,"",null,null,null,null,null,0,""]
[null,"",null,null,null,null,null,null,0,null,null,null,null,0,0,"",null,null,null,null,null,0,""]
[null,"",null,null,null,null,null,null,0,null,null,null,null,0,0,"",null,null,null,null,null,0,""]
[null,"",null,null,null,null,null,null,0,null,null,null,null,0,0,"",null,null,null,null,null,0,""]
[null,"",null,null,null,null,null,null,0,null,null,null,null,0,0,"",null,null,null,null,null,0,""]
[null,"",null,null,null,null,null,null,0,null,null,null,null,0,0,"",null,null,null,null,null,0,""]
[null,"",null,null,null,null,null,null,0,null,null,null,null,0,0,"",null,null,null,null,null,0,""]
[null,"",null,null,null,null,null,null,0,null,null,null,null,0,0,"",null,null,null,null,null,0,""]
[null,"",null,null,null,null,null,null,0,null,null,null,null,0,0,"",null,null,null,null,null,0,""]
[null,"",null,null,null,null,null,null,0,null,null,null,null,0,0,"",null,null,null,null,null,0,""]
[null,"",null,null,null,null,null,null,0,null,null,null,null,0,0,"",null,null,null,null,null,0,""]
[null,"",null,null,null,null,null,null,0,null,null,null,null,0,0,"",null,null,null,null,null,0,""]
[null,"",null,null,null,null,null,null,0,null,null,null,null,0,0,"",null,null,null,null,null,0,""]
[null,"",null,null,null,null,null,null,0,null,null,null,null,0,0,"",null,null,null,null,null,0,""]
[null,"",null,null,null,null,null,null,0,null,null,null,null,0,0,"",null,null,null,null,null,0,""]
[null,"",null,null,null,null,null,null,0,null,null,null,null,0,0,"",null,null,null,null,null,0,""]
[null,"",null,null,null,null,null,null,0,null,null,null,null,0,0,"",null,null,null,null,null,0,""]
[null,"",null,null,null,null,null,null,0,null,null,null,null,0,0,"",null,null,null,null,null,0,""]
[null,"",null,null,null,null,null,null,0,null,null,null,null,0,0,"",null,null,null,null,null,0,""]
[null,"",null,null,null,null,null,null,0,null,null,null,null,0,0,"",null,null,null,null,null,0,""]
[null,"",null,null,null,null,null,null,0,null,null,null,null,0,0,"",null,null,null,null,null,0,""]
[null,"",null,null,null,null,null,null,0,null,null,null,null,0,0,"",null,null,null,null,null,0,""]
[null,"",null,null,null,null,null,null,0,null,null,null,null,0,0,"",null,null,null,null,null,0,""]
[null,"",null,null,null,null,null,null,0,null,null,null,null,0,0,"",null,null,null,null,null,0,""]
[null,"",null,null,null,null,null,null,0,null,null,null,null,0,0,"",null,null,null,null,null,0,""]
[null,"",null,null,null,null,null,null,0,null,null,null,null,0,0,"",null,null,null,null,null,0,""]
[null,"",null,null,null,null,null,null,0,null,null,null,null,0,0,"",null,null,null,null,null,0,""]
[null,"",null,null,null,null,null,null,0,null,null,null,null,0,0,"",null,null,null,null,null,0,""]
[null,"",null,null,null,null,null,null,0,null,null,null,null,0,0,"",null,null,null,null,null,0,""]
[null,"",null,null,null,null,null,null,0,null,null,null,null,0,0,"",null,null,null,null,null,0,""]
[null,"",null,null,null,null,null,null,0,null,null,null,null,0,0,"",null,null,null,null,null,0,""]
[null,"",null,null,null,null,null,null,0,null,null,null,null,0,0,"",null,null,null,null,null,0,""]
[null,"",null,null,null,null,null,null,0,null,null,null,null,0,0,"",null,null,null,null,null,0,""]
[null,"",null,null,null,null,null,null,0,null,null,null,null,0,0,"",null,null,null,null,null,0,""]
[null,"",null,null,null,null,null,null,0,null,null,null,null,0,0,"",null,null,null,null,null,0,""]
[null,"",null,null,null,null,null,null,0,null,null,null,null,0,0,"",null,null,null,null,null,0,""]
[null,"",null,null,null,null,null,null,0,null,null,null,null,0,0,"",null,null,null,null,null,0,""]
[null,"",null,null,null,null,null,null,0,null,null,null,null,0,0,"",null,null,null,null,null,0,""]
[null,"",null,null,null,null,null,null,0,null,null,null,null,0,0,"",null,null,null,null,null,0,""]
[null,"",null,null,null,null,null,null,0,null,null,null,null,0,0,"",null,null,null,null,null,0,""]
[null,"",null,null,null,null,null,null,0,null,null,null,null,{"$f":"MOD((VALUE(MID(TEXT(A198,\"000000000000000\"),15,1))*3+VALUE(MID(TEXT(A198,\"000000000000000\"),14,1))*7+VALUE(MID(TEXT(A198,\"000000000000000\"),13,1))*13+VALUE(MID(TEXT(A198,\"000000000000000\"),12,1))*17+VALUE(MID(TEXT(A198,\"000000000000000\"),11,1))*19+VALUE(MID(TEXT(A198,\"000000000000000\"),10,1))*23+VALUE(MID(TEXT(A198,\"000000000000000\"),9,1))*29+VALUE(MID(TEXT(A198,\"000000000000000\"),8,1))*37+VALUE(MID(TEXT(A198,\"000000000000000\"),7,1))*41+VALUE(MID(TEXT(A198,\"000000000000000\"),6,1))*43+VALUE(MID(TEXT(A198,\"000000000000000\"),5,1))*47+VALUE(MID(TEXT(A198,\"000000000000000\"),4,1))*53+VALUE(MID(TEXT(A198,\"000000000000000\"),3,1))*59+VALUE(MID(TEXT(A198,\"000000000000000\"),2,1))*67+VALUE(MID(TEXT(A198,\"000000000000000\"),1,1))*71),11)","v":0},0,{"$f":"IF(H198=\"REGISTRO ACTIVO\",O198,\"\")","v":""},null,null,null,null,null,0,""]
[null,{"$f":"+P199","v":""},null,null,null,null,null,null,{"$f":"IF(H199=\"REGISTRO ACTIVO\",1,0)","v":0},null,null,null,null,0,{"$f":"IF(N199=0,0,IF(N199=1,1,11-N199))","v":0},"",null,null,null,null,null,{"$f":"IF(H199=\"\",0,1)","v":0},{"$f":"IF(AND(A199>0,H199=\"\",$V$5007>0),\"NO\",\"\")","v":""}]
[null,"",null,null,null,null,null,null,0,null,null,null,null,0,0,"",null,null,null,null,null,0,"",null,null,null,null,null,null,null,null,null,null,null,null,null,null,null,null,null,null,null,null,null,null,null,null,null,null,null,null,null,null,null,null,null,null,null,null,null,null,null,null,null,null,null,null,null,null,null,null,null,null,null,null,null,null,null,null,null,null,null,null,null,null,null,null,null,null,null,null,null,null,null,null,null,null,null,null,null,null,null,null,null,null,null,null,null,null,null,null,null,null,null,null,null,null,null,null,null,null,null,null,null,null,null,null,null,null,null,null,null,null,null,null,null,null,null,null,null,null,null,null,null,null,null,null,null,null,null,null,null,null,null,null,null,null,null,null,null,null,null,null,null,null,null,null,null,null,null,null,null,null,null,null,null,null,null,null,null,null,null,null,null,null,null,null,null,null,null,null,null,null,null,null,null,null,null,null,null,null,null,null,null,null,null,null,null,null,null,null,null,null,null,null,null,null,null,null,null,null,null,null,null,null,null,null,null,null,null,null,null,null,null,null,null,null,null,null,null,null,null,null,null,null,null,null,null,null,null,null,null,null,null,null,null,null,null,null,"nelsonj@gestionf.co","Pablo Nelson Junco Moreno"]
[null,"",null,null,null,null,null,null,0,null,null,null,null,0,0,"",null,null,null,null,null,0,"",null,null,null,null,null,null,null,null,null,null,null,null,null,null,null,null,null,null,null,null,null,null,null,null,null,null,null,null,null,null,null,null,null,null,null,null,null,null,null,null,null,null,null,null,null,null,null,null,null,null,null,null,null,null,null,null,null,null,null,null,null,null,null,null,null,null,null,null,null,null,null,null,null,null,null,null,null,null,null,null,null,null,null,null,null,null,null,null,null,null,null,null,null,null,null,null,null,null,null,null,null,null,null,null,null,null,null,null,null,null,null,null,null,null,null,null,null,null,null,null,null,null,null,null,null,null,null,null,null,null,null,null,null,null,null,null,null,null,null,null,null,null,null,null,null,null,null,null,null,null,null,null,null,null,null,null,null,null,null,null,null,null,null,null,null,null,null,null,null,null,null,null,null,null,null,null,null,null,null,null,null,null,null,null,null,null,null,null,null,null,null,null,null,null,null,null,null,null,null,null,null,null,null,null,null,null,null,null,null,null,null,null,null,null,null,null,null,null,null,null,null,null,null,null,null,null,null,null,null,null,null,null,null,null,null,null,"leydi.171@hotmail.com","Leydi Velazco"]
[null,"",null,null,null,null,null,null,0,null,null,null,null,0,0,"",null,null,null,null,null,0,"",null,null,null,null,null,null,null,null,null,null,null,null,null,null,null,null,null,null,null,null,null,null,null,null,null,null,null,null,null,null,null,null,null,null,null,null,null,null,null,null,null,null,null,null,null,null,null,null,null,null,null,null,null,null,null,null,null,null,null,null,null,null,null,null,null,null,null,null,null,null,null,null,null,null,null,null,null,null,null,null,null,null,null,null,null,null,null,null,null,null,null,null,null,null,null,null,null,null,null,null,null,null,null,null,null,null,null,null,null,null,null,null,null,null,null,null,null,null,null,null,null,null,null,null,null,null,null,null,null,null,null,null,null,null,null,null,null,null,null,null,null,null,null,null,null,null,null,null,null,null,null,null,null,null,null,null,null,null,null,null,null,null,null,null,null,null,null,null,null,null,null,null,null,null,null,null,null,null,null,null,null,null,null,null,null,null,null,null,null,null,null,null,null,null,null,null,null,null,null,null,null,null,null,null,null,null,null,null,null,null,null,null,null,null,null,null,null,null,null,null,null,null,null,null,null,null,null,null,null,null,null,null,null,null,null,null,"elimoreno03@yahoo.es","Maria Elizabeth Moreno"]
[null,"",null,null,null,null,null,null,0,null,null,null,null,0,0,"",null,null,null,null,null,0,"",null,null,null,null,null,null,null,null,null,null,null,null,null,null,null,null,null,null,null,null,null,null,null,null,null,null,null,null,null,null,null,null,null,null,null,null,null,null,null,null,null,null,null,null,null,null,null,null,null,null,null,null,null,null,null,null,null,null,null,null,null,null,null,null,null,null,null,null,null,null,null,null,null,null,null,null,null,null,null,null,null,null,null,null,null,null,null,null,null,null,null,null,null,null,null,null,null,null,null,null,null,null,null,null,null,null,null,null,null,null,null,null,null,null,null,null,null,null,null,null,null,null,null,null,null,null,null,null,null,null,null,null,null,null,null,null,null,null,null,null,null,null,null,null,null,null,null,null,null,null,null,null,null,null,null,null,null,null,null,null,null,null,null,null,null,null,null,null,null,null,null,null,null,null,null,null,null,null,null,null,null,null,null,null,null,null,null,null,null,null,null,null,null,null,null,null,null,null,null,null,null,null,null,null,null,null,null,null,null,null,null,null,null,null,null,null,null,null,null,null,null,null,null,null,null,null,null,null,null,null,null,null,null,null,null,null,"aldemarcardozo99@gmail.com","José Aldemar Cardozo T"]
[null,"",null,null,null,null,null,null,0,null,null,null,null,0,0,"",null,null,null,null,null,0,"",null,null,null,null,null,null,null,null,null,null,null,null,null,null,null,null,null,null,null,null,null,null,null,null,null,null,null,null,null,null,null,null,null,null,null,null,null,null,null,null,null,null,null,null,null,null,null,null,null,null,null,null,null,null,null,null,null,null,null,null,null,null,null,null,null,null,null,null,null,null,null,null,null,null,null,null,null,null,null,null,null,null,null,null,null,null,null,null,null,null,null,null,null,null,null,null,null,null,null,null,null,null,null,null,null,null,null,null,null,null,null,null,null,null,null,null,null,null,null,null,null,null,null,null,null,null,null,null,null,null,null,null,null,null,null,null,null,null,null,null,null,null,null,null,null,null,null,null,null,null,null,null,null,null,null,null,null,null,null,null,null,null,null,null,null,null,null,null,null,null,null,null,null,null,null,null,null,null,null,null,null,null,null,null,null,null,null,null,null,null,null,null,null,null,null,null,null,null,null,null,null,null,null,null,null,null,null,null,null,null,null,null,null,null,null,null,null,null,null,null,null,null,null,null,null,null,null,null,null,null,null,null,null,null,null,null,"suxann.20@hotmail.com","ELSY AZUCENA SOTO ZULUAGA"]
[null,"",null,null,null,null,null,null,0,null,null,null,null,0,0,"",null,null,null,null,null,0,"",null,null,null,null,null,null,null,null,null,null,null,null,null,null,null,null,null,null,null,null,null,null,null,null,null,null,null,null,null,null,null,null,null,null,null,null,null,null,null,null,null,null,null,null,null,null,null,null,null,null,null,null,null,null,null,null,null,null,null,null,null,null,null,null,null,null,null,null,null,null,null,null,null,null,null,null,null,null,null,null,null,null,null,null,null,null,null,null,null,null,null,null,null,null,null,null,null,null,null,null,null,null,null,null,null,null,null,null,null,null,null,null,null,null,null,null,null,null,null,null,null,null,null,null,null,null,null,null,null,null,null,null,null,null,null,null,null,null,null,null,null,null,null,null,null,null,null,null,null,null,null,null,null,null,null,null,null,null,null,null,null,null,null,null,null,null,null,null,null,null,null,null,null,null,null,null,null,null,null,null,null,null,null,null,null,null,null,null,null,null,null,null,null,null,null,null,null,null,null,null,null,null,null,null,null,null,null,null,null,null,null,null,null,null,null,null,null,null,null,null,null,null,null,null,null,null,null,null,null,null,null,null,null,null,null,null,"rodrigo6122@abin.com.co","ABASTECIMIENTOS INDUSTRIALES SAS"]
[null,"",null,null,null,null,null,null,0,null,null,null,null,0,0,"",null,null,null,null,null,0,"",null,null,null,null,null,null,null,null,null,null,null,null,null,null,null,null,null,null,null,null,null,null,null,null,null,null,null,null,null,null,null,null,null,null,null,null,null,null,null,null,null,null,null,null,null,null,null,null,null,null,null,null,null,null,null,null,null,null,null,null,null,null,null,null,null,null,null,null,null,null,null,null,null,null,null,null,null,null,null,null,null,null,null,null,null,null,null,null,null,null,null,null,null,null,null,null,null,null,null,null,null,null,null,null,null,null,null,null,null,null,null,null,null,null,null,null,null,null,null,null,null,null,null,null,null,null,null,null,null,null,null,null,null,null,null,null,null,null,null,null,null,null,null,null,null,null,null,null,null,null,null,null,null,null,null,null,null,null,null,null,null,null,null,null,null,null,null,null,null,null,null,null,null,null,null,null,null,null,null,null,null,null,null,null,null,null,null,null,null,null,null,null,null,null,null,null,null,null,null,null,null,null,null,null,null,null,null,null,null,null,null,null,null,null,null,null,null,null,null,null,null,null,null,null,null,null,null,null,null,null,null,null,null,null,null,null,"johnvelandia@ptcsas.co","jhon velandia"]
[null,"",null,null,null,null,null,null,0,null,null,null,null,0,0,"",null,null,null,null,null,0,"",null,null,null,null,null,null,null,null,null,null,null,null,null,null,null,null,null,null,null,null,null,null,null,null,null,null,null,null,null,null,null,null,null,null,null,null,null,null,null,null,null,null,null,null,null,null,null,null,null,null,null,null,null,null,null,null,null,null,null,null,null,null,null,null,null,null,null,null,null,null,null,null,null,null,null,null,null,null,null,null,null,null,null,null,null,null,null,null,null,null,null,null,null,null,null,null,null,null,null,null,null,null,null,null,null,null,null,null,null,null,null,null,null,null,null,null,null,null,null,null,null,null,null,null,null,null,null,null,null,null,null,null,null,null,null,null,null,null,null,null,null,null,null,null,null,null,null,null,null,null,null,null,null,null,null,null,null,null,null,null,null,null,null,null,null,null,null,null,null,null,null,null,null,null,null,null,null,null,null,null,null,null,null,null,null,null,null,null,null,null,null,null,null,null,null,null,null,null,null,null,null,null,null,null,null,null,null,null,null,null,null,null,null,null,null,null,null,null,null,null,null,null,null,null,null,null,null,null,null,null,null,null,null,null,null,null,"monttvalasociados@gmail.com","Alexie Montt Ramos"]
[null,"",null,null,null,null,null,null,0,null,null,null,null,0,0,"",null,null,null,null,null,0,"",null,null,null,null,null,null,null,null,null,null,null,null,null,null,null,null,null,null,null,null,null,null,null,null,null,null,null,null,null,null,null,null,null,null,null,null,null,null,null,null,null,null,null,null,null,null,null,null,null,null,null,null,null,null,null,null,null,null,null,null,null,null,null,null,null,null,null,null,null,null,null,null,null,null,null,null,null,null,null,null,null,null,null,null,null,null,null,null,null,null,null,null,null,null,null,null,null,null,null,null,null,null,null,null,null,null,null,null,null,null,null,null,null,null,null,null,null,null,null,null,null,null,null,null,null,null,null,null,null,null,null,null,null,null,null,null,null,null,null,null,null,null,null,null,null,null,null,null,null,null,null,null,null,null,null,null,null,null,null,null,null,null,null,null,null,null,null,null,null,null,null,null,null,null,null,null,null,null,null,null,null,null,null,null,null,null,null,null,null,null,null,null,null,null,null,null,null,null,null,null,null,null,null,null,null,null,null,null,null,null,null,null,null,null,null,null,null,null,null,null,null,null,null,null,null,null,null,null,null,null,null,null,null,null,null,null,"pygasesoriascontablespereira@gmail.com","JHON PESCADOR"]
[null,"",null,null,null,null,null,null,0,null,null,null,null,0,0,"",null,null,null,null,null,0,"",null,null,null,null,null,null,null,null,null,null,null,null,null,null,null,null,null,null,null,null,null,null,null,null,null,null,null,null,null,null,null,null,null,null,null,null,null,null,null,null,null,null,null,null,null,null,null,null,null,null,null,null,null,null,null,null,null,null,null,null,null,null,null,null,null,null,null,null,null,null,null,null,null,null,null,null,null,null,null,null,null,null,null,null,null,null,null,null,null,null,null,null,null,null,null,null,null,null,null,null,null,null,null,null,null,null,null,null,null,null,null,null,null,null,null,null,null,null,null,null,null,null,null,null,null,null,null,null,null,null,null,null,null,null,null,null,null,null,null,null,null,null,null,null,null,null,null,null,null,null,null,null,null,null,null,null,null,null,null,null,null,null,null,null,null,null,null,null,null,null,null,null,null,null,null,null,null,null,null,null,null,null,null,null,null,null,null,null,null,null,null,null,null,null,null,null,null,null,null,null,null,null,null,null,null,null,null,null,null,null,null,null,null,null,null,null,null,null,null,null,null,null,null,null,null,null,null,null,null,null,null,null,null,null,null,null,"contabilidad@credialianza.com","Credialianza SAS"]
[null,"",null,null,null,null,null,null,0,null,null,null,null,0,0,"",null,null,null,null,null,0,"",null,null,null,null,null,null,null,null,null,null,null,null,null,null,null,null,null,null,null,null,null,null,null,null,null,null,null,null,null,null,null,null,null,null,null,null,null,null,null,null,null,null,null,null,null,null,null,null,null,null,null,null,null,null,null,null,null,null,null,null,null,null,null,null,null,null,null,null,null,null,null,null,null,null,null,null,null,null,null,null,null,null,null,null,null,null,null,null,null,null,null,null,null,null,null,null,null,null,null,null,null,null,null,null,null,null,null,null,null,null,null,null,null,null,null,null,null,null,null,null,null,null,null,null,null,null,null,null,null,null,null,null,null,null,null,null,null,null,null,null,null,null,null,null,null,null,null,null,null,null,null,null,null,null,null,null,null,null,null,null,null,null,null,null,null,null,null,null,null,null,null,null,null,null,null,null,null,null,null,null,null,null,null,null,null,null,null,null,null,null,null,null,null,null,null,null,null,null,null,null,null,null,null,null,null,null,null,null,null,null,null,null,null,null,null,null,null,null,null,null,null,null,null,null,null,null,null,null,null,null,null,null,null,null,null,null,"ppelena3@hotmail.com","EDISON ALBERTO VARGAS LONDOÑO"]
[null,"",null,null,null,null,null,null,0,null,null,null,null,0,0,"",null,null,null,null,null,0,"",null,null,null,null,null,null,null,null,null,null,null,null,null,null,null,null,null,null,null,null,null,null,null,null,null,null,null,null,null,null,null,null,null,null,null,null,null,null,null,null,null,null,null,null,null,null,null,null,null,null,null,null,null,null,null,null,null,null,null,null,null,null,null,null,null,null,null,null,null,null,null,null,null,null,null,null,null,null,null,null,null,null,null,null,null,null,null,null,null,null,null,null,null,null,null,null,null,null,null,null,null,null,null,null,null,null,null,null,null,null,null,null,null,null,null,null,null,null,null,null,null,null,null,null,null,null,null,null,null,null,null,null,null,null,null,null,null,null,null,null,null,null,null,null,null,null,null,null,null,null,null,null,null,null,null,null,null,null,null,null,null,null,null,null,null,null,null,null,null,null,null,null,null,null,null,null,null,null,null,null,null,null,null,null,null,null,null,null,null,null,null,null,null,null,null,null,null,null,null,null,null,null,null,null,null,null,null,null,null,null,null,null,null,null,null,null,null,null,null,null,null,null,null,null,null,null,null,null,null,null,null,null,null,null,null,null,"contabilidad@regsas.com","Zenaida Martinez"]
[null,"",null,null,null,null,null,null,0,null,null,null,null,0,0,"",null,null,null,null,null,0,"",null,null,null,null,null,null,null,null,null,null,null,null,null,null,null,null,null,null,null,null,null,null,null,null,null,null,null,null,null,null,null,null,null,null,null,null,null,null,null,null,null,null,null,null,null,null,null,null,null,null,null,null,null,null,null,null,null,null,null,null,null,null,null,null,null,null,null,null,null,null,null,null,null,null,null,null,null,null,null,null,null,null,null,null,null,null,null,null,null,null,null,null,null,null,null,null,null,null,null,null,null,null,null,null,null,null,null,null,null,null,null,null,null,null,null,null,null,null,null,null,null,null,null,null,null,null,null,null,null,null,null,null,null,null,null,null,null,null,null,null,null,null,null,null,null,null,null,null,null,null,null,null,null,null,null,null,null,null,null,null,null,null,null,null,null,null,null,null,null,null,null,null,null,null,null,null,null,null,null,null,null,null,null,null,null,null,null,null,null,null,null,null,null,null,null,null,null,null,null,null,null,null,null,null,null,null,null,null,null,null,null,null,null,null,null,null,null,null,null,null,null,null,null,null,null,null,null,null,null,null,null,null,null,null,null,null,"piedadg@une.net.co","PIEDAD RUBIELA GOMEZ T"]
[null,"",null,null,null,null,null,null,0,null,null,null,null,0,0,"",null,null,null,null,null,0,"",null,null,null,null,null,null,null,null,null,null,null,null,null,null,null,null,null,null,null,null,null,null,null,null,null,null,null,null,null,null,null,null,null,null,null,null,null,null,null,null,null,null,null,null,null,null,null,null,null,null,null,null,null,null,null,null,null,null,null,null,null,null,null,null,null,null,null,null,null,null,null,null,null,null,null,null,null,null,null,null,null,null,null,null,null,null,null,null,null,null,null,null,null,null,null,null,null,null,null,null,null,null,null,null,null,null,null,null,null,null,null,null,null,null,null,null,null,null,null,null,null,null,null,null,null,null,null,null,null,null,null,null,null,null,null,null,null,null,null,null,null,null,null,null,null,null,null,null,null,null,null,null,null,null,null,null,null,null,null,null,null,null,null,null,null,null,null,null,null,null,null,null,null,null,null,null,null,null,null,null,null,null,null,null,null,null,null,null,null,null,null,null,null,null,null,null,null,null,null,null,null,null,null,null,null,null,null,null,null,null,null,null,null,null,null,null,null,null,null,null,null,null,null,null,null,null,null,null,null,null,null,null,null,null,null,null,"ljcarvajal17@gmail.com","Luis Jose Carvajal Almeyda"]
[null,"",null,null,null,null,null,null,0,null,null,null,null,0,0,"",null,null,null,null,null,0,"",null,null,null,null,null,null,null,null,null,null,null,null,null,null,null,null,null,null,null,null,null,null,null,null,null,null,null,null,null,null,null,null,null,null,null,null,null,null,null,null,null,null,null,null,null,null,null,null,null,null,null,null,null,null,null,null,null,null,null,null,null,null,null,null,null,null,null,null,null,null,null,null,null,null,null,null,null,null,null,null,null,null,null,null,null,null,null,null,null,null,null,null,null,null,null,null,null,null,null,null,null,null,null,null,null,null,null,null,null,null,null,null,null,null,null,null,null,null,null,null,null,null,null,null,null,null,null,null,null,null,null,null,null,null,null,null,null,null,null,null,null,null,null,null,null,null,null,null,null,null,null,null,null,null,null,null,null,null,null,null,null,null,null,null,null,null,null,null,null,null,null,null,null,null,null,null,null,null,null,null,null,null,null,null,null,null,null,null,null,null,null,null,null,null,null,null,null,null,null,null,null,null,null,null,null,null,null,null,null,null,null,null,null,null,null,null,null,null,null,null,null,null,null,null,null,null,null,null,null,null,null,null,null,null,null,null,"edgardo.acuna01@gmail.com","Edgardo Acuña"]
[null,"",null,null,null,null,null,null,0,null,null,null,null,0,0,"",null,null,null,null,null,0,"",null,null,null,null,null,null,null,null,null,null,null,null,null,null,null,null,null,null,null,null,null,null,null,null,null,null,null,null,null,null,null,null,null,null,null,null,null,null,null,null,null,null,null,null,null,null,null,null,null,null,null,null,null,null,null,null,null,null,null,null,null,null,null,null,null,null,null,null,null,null,null,null,null,null,null,null,null,null,null,null,null,null,null,null,null,null,null,null,null,null,null,null,null,null,null,null,null,null,null,null,null,null,null,null,null,null,null,null,null,null,null,null,null,null,null,null,null,null,null,null,null,null,null,null,null,null,null,null,null,null,null,null,null,null,null,null,null,null,null,null,null,null,null,null,null,null,null,null,null,null,null,null,null,null,null,null,null,null,null,null,null,null,null,null,null,null,null,null,null,null,null,null,null,null,null,null,null,null,null,null,null,null,null,null,null,null,null,null,null,null,null,null,null,null,null,null,null,null,null,null,null,null,null,null,null,null,null,null,null,null,null,null,null,null,null,null,null,null,null,null,null,null,null,null,null,null,null,null,null,null,null,null,null,null,null,null,"adic59@hotmail.com","ROCIO I ARROYAVE LOAIZA"]
[null,"",null,null,null,null,null,null,0,null,null,null,null,0,0,"",null,null,null,null,null,0,"",null,null,null,null,null,null,null,null,null,null,null,null,null,null,null,null,null,null,null,null,null,null,null,null,null,null,null,null,null,null,null,null,null,null,null,null,null,null,null,null,null,null,null,null,null,null,null,null,null,null,null,null,null,null,null,null,null,null,null,null,null,null,null,null,null,null,null,null,null,null,null,null,null,null,null,null,null,null,null,null,null,null,null,null,null,null,null,null,null,null,null,null,null,null,null,null,null,null,null,null,null,null,null,null,null,null,null,null,null,null,null,null,null,null,null,null,null,null,null,null,null,null,null,null,null,null,null,null,null,null,null,null,null,null,null,null,null,null,null,null,null,null,null,null,null,null,null,null,null,null,null,null,null,null,null,null,null,null,null,null,null,null,null,null,null,null,null,null,null,null,null,null,null,null,null,null,null,null,null,null,null,null,null,null,null,null,null,null,null,null,null,null,null,null,null,null,null,null,null,null,null,null,null,null,null,null,null,null,null,null,null,null,null,null,null,null,null,null,null,null,null,null,null,null,null,null,null,null,null,null,null,null,null,null,null,null,"capinillat@gmail.com","CARLOS PINILLA"]
[null,"",null,null,null,null,null,null,0,null,null,null,null,0,0,"",null,null,null,null,null,0,"",null,null,null,null,null,null,null,null,null,null,null,null,null,null,null,null,null,null,null,null,null,null,null,null,null,null,null,null,null,null,null,null,null,null,null,null,null,null,null,null,null,null,null,null,null,null,null,null,null,null,null,null,null,null,null,null,null,null,null,null,null,null,null,null,null,null,null,null,null,null,null,null,null,null,null,null,null,null,null,null,null,null,null,null,null,null,null,null,null,null,null,null,null,null,null,null,null,null,null,null,null,null,null,null,null,null,null,null,null,null,null,null,null,null,null,null,null,null,null,null,null,null,null,null,null,null,null,null,null,null,null,null,null,null,null,null,null,null,null,null,null,null,null,null,null,null,null,null,null,null,null,null,null,null,null,null,null,null,null,null,null,null,null,null,null,null,null,null,null,null,null,null,null,null,null,null,null,null,null,null,null,null,null,null,null,null,null,null,null,null,null,null,null,null,null,null,null,null,null,null,null,null,null,null,null,null,null,null,null,null,null,null,null,null,null,null,null,null,null,null,null,null,null,null,null,null,null,null,null,null,null,null,null,null,null,null,"PENDIENTE QIE MANEDEN CORREO ","LUIS JOSE  CARVA"]
[null,"",null,null,null,null,null,null,0,null,null,null,null,0,0,"",null,null,null,null,null,0,"",null,null,null,null,null,null,null,null,null,null,null,null,null,null,null,null,null,null,null,null,null,null,null,null,null,null,null,null,null,null,null,null,null,null,null,null,null,null,null,null,null,null,null,null,null,null,null,null,null,null,null,null,null,null,null,null,null,null,null,null,null,null,null,null,null,null,null,null,null,null,null,null,null,null,null,null,null,null,null,null,null,null,null,null,null,null,null,null,null,null,null,null,null,null,null,null,null,null,null,null,null,null,null,null,null,null,null,null,null,null,null,null,null,null,null,null,null,null,null,null,null,null,null,null,null,null,null,null,null,null,null,null,null,null,null,null,null,null,null,null,null,null,null,null,null,null,null,null,null,null,null,null,null,null,null,null,null,null,null,null,null,null,null,null,null,null,null,null,null,null,null,null,null,null,null,null,null,null,null,null,null,null,null,null,null,null,null,null,null,null,null,null,null,null,null,null,null,null,null,null,null,null,null,null,null,null,null,null,null,null,null,null,null,null,null,null,null,null,null,null,null,null,null,null,null,null,null,null,null,null,null,null,null,null,null,null,"gerencia@megamedicass.com","Maria Hincapié"]
[null,"",null,null,null,null,null,null,0,null,null,null,null,0,0,"",null,null,null,null,null,0,"",null,null,null,null,null,null,null,null,null,null,null,null,null,null,null,null,null,null,null,null,null,null,null,null,null,null,null,null,null,null,null,null,null,null,null,null,null,null,null,null,null,null,null,null,null,null,null,null,null,null,null,null,null,null,null,null,null,null,null,null,null,null,null,null,null,null,null,null,null,null,null,null,null,null,null,null,null,null,null,null,null,null,null,null,null,null,null,null,null,null,null,null,null,null,null,null,null,null,null,null,null,null,null,null,null,null,null,null,null,null,null,null,null,null,null,null,null,null,null,null,null,null,null,null,null,null,null,null,null,null,null,null,null,null,null,null,null,null,null,null,null,null,null,null,null,null,null,null,null,null,null,null,null,null,null,null,null,null,null,null,null,null,null,null,null,null,null,null,null,null,null,null,null,null,null,null,null,null,null,null,null,null,null,null,null,null,null,null,null,null,null,null,null,null,null,null,null,null,null,null,null,null,null,null,null,null,null,null,null,null,null,null,null,null,null,null,null,null,null,null,null,null,null,null,null,null,null,null,null,null,null,null,null,null,null,null,"mariluchacor@hotmail.com","Maria Luciria Arango Cordoba"]
[null,"",null,null,null,null,null,null,0,null,null,null,null,0,0,"",null,null,null,null,null,0,"",null,null,null,null,null,null,null,null,null,null,null,null,null,null,null,null,null,null,null,null,null,null,null,null,null,null,null,null,null,null,null,null,null,null,null,null,null,null,null,null,null,null,null,null,null,null,null,null,null,null,null,null,null,null,null,null,null,null,null,null,null,null,null,null,null,null,null,null,null,null,null,null,null,null,null,null,null,null,null,null,null,null,null,null,null,null,null,null,null,null,null,null,null,null,null,null,null,null,null,null,null,null,null,null,null,null,null,null,null,null,null,null,null,null,null,null,null,null,null,null,null,null,null,null,null,null,null,null,null,null,null,null,null,null,null,null,null,null,null,null,null,null,null,null,null,null,null,null,null,null,null,null,null,null,null,null,null,null,null,null,null,null,null,null,null,null,null,null,null,null,null,null,null,null,null,null,null,null,null,null,null,null,null,null,null,null,null,null,null,null,null,null,null,null,null,null,null,null,null,null,null,null,null,null,null,null,null,null,null,null,null,null,null,null,null,null,null,null,null,null,null,null,null,null,null,null,null,null,null,null,null,null,null,null,null,null,"camilo90cls@hotmail.com","Cristian Camilo Laiton Sanchez"]
[null,"",null,null,null,null,null,null,0,null,null,null,null,0,0,"",null,null,null,null,null,0,"",null,null,null,null,null,null,null,null,null,null,null,null,null,null,null,null,null,null,null,null,null,null,null,null,null,null,null,null,null,null,null,null,null,null,null,null,null,null,null,null,null,null,null,null,null,null,null,null,null,null,null,null,null,null,null,null,null,null,null,null,null,null,null,null,null,null,null,null,null,null,null,null,null,null,null,null,null,null,null,null,null,null,null,null,null,null,null,null,null,null,null,null,null,null,null,null,null,null,null,null,null,null,null,null,null,null,null,null,null,null,null,null,null,null,null,null,null,null,null,null,null,null,null,null,null,null,null,null,null,null,null,null,null,null,null,null,null,null,null,null,null,null,null,null,null,null,null,null,null,null,null,null,null,null,null,null,null,null,null,null,null,null,null,null,null,null,null,null,null,null,null,null,null,null,null,null,null,null,null,null,null,null,null,null,null,null,null,null,null,null,null,null,null,null,null,null,null,null,null,null,null,null,null,null,null,null,null,null,null,null,null,null,null,null,null,null,null,null,null,null,null,null,null,null,null,null,null,null,null,null,null,null,null,null,null,null,"sandra4530@hotmail.com","SANDRA JUDITH BERNAL LEIVA"]
[null,"",null,null,null,null,null,null,0,null,null,null,null,0,0,"",null,null,null,null,null,0,"",null,null,null,null,null,null,null,null,null,null,null,null,null,null,null,null,null,null,null,null,null,null,null,null,null,null,null,null,null,null,null,null,null,null,null,null,null,null,null,null,null,null,null,null,null,null,null,null,null,null,null,null,null,null,null,null,null,null,null,null,null,null,null,null,null,null,null,null,null,null,null,null,null,null,null,null,null,null,null,null,null,null,null,null,null,null,null,null,null,null,null,null,null,null,null,null,null,null,null,null,null,null,null,null,null,null,null,null,null,null,null,null,null,null,null,null,null,null,null,null,null,null,null,null,null,null,null,null,null,null,null,null,null,null,null,null,null,null,null,null,null,null,null,null,null,null,null,null,null,null,null,null,null,null,null,null,null,null,null,null,null,null,null,null,null,null,null,null,null,null,null,null,null,null,null,null,null,null,null,null,null,null,null,null,null,null,null,null,null,null,null,null,null,null,null,null,null,null,null,null,null,null,null,null,null,null,null,null,null,null,null,null,null,null,null,null,null,null,null,null,null,null,null,null,null,null,null,null,null,null,null,null,null,null,null,null,"gerson@nascimentoconsultores.com","Nascimento Consultores SAS"]
[null,"",null,null,null,null,null,null,0,null,null,null,null,0,0,"",null,null,null,null,null,0,"",null,null,null,null,null,null,null,null,null,null,null,null,null,null,null,null,null,null,null,null,null,null,null,null,null,null,null,null,null,null,null,null,null,null,null,null,null,null,null,null,null,null,null,null,null,null,null,null,null,null,null,null,null,null,null,null,null,null,null,null,null,null,null,null,null,null,null,null,null,null,null,null,null,null,null,null,null,null,null,null,null,null,null,null,null,null,null,null,null,null,null,null,null,null,null,null,null,null,null,null,null,null,null,null,null,null,null,null,null,null,null,null,null,null,null,null,null,null,null,null,null,null,null,null,null,null,null,null,null,null,null,null,null,null,null,null,null,null,null,null,null,null,null,null,null,null,null,null,null,null,null,null,null,null,null,null,null,null,null,null,null,null,null,null,null,null,null,null,null,null,null,null,null,null,null,null,null,null,null,null,null,null,null,null,null,null,null,null,null,null,null,null,null,null,null,null,null,null,null,null,null,null,null,null,null,null,null,null,null,null,null,null,null,null,null,null,null,null,null,null,null,null,null,null,null,null,null,null,null,null,null,null,null,null,null,null,"mbedoya10@hotmail.com","MERCEDES BEDOYA"]
[null,"",null,null,null,null,null,null,0,null,null,null,null,0,0,"",null,null,null,null,null,0,"",null,null,null,null,null,null,null,null,null,null,null,null,null,null,null,null,null,null,null,null,null,null,null,null,null,null,null,null,null,null,null,null,null,null,null,null,null,null,null,null,null,null,null,null,null,null,null,null,null,null,null,null,null,null,null,null,null,null,null,null,null,null,null,null,null,null,null,null,null,null,null,null,null,null,null,null,null,null,null,null,null,null,null,null,null,null,null,null,null,null,null,null,null,null,null,null,null,null,null,null,null,null,null,null,null,null,null,null,null,null,null,null,null,null,null,null,null,null,null,null,null,null,null,null,null,null,null,null,null,null,null,null,null,null,null,null,null,null,null,null,null,null,null,null,null,null,null,null,null,null,null,null,null,null,null,null,null,null,null,null,null,null,null,null,null,null,null,null,null,null,null,null,null,null,null,null,null,null,null,null,null,null,null,null,null,null,null,null,null,null,null,null,null,null,null,null,null,null,null,null,null,null,null,null,null,null,null,null,null,null,null,null,null,null,null,null,null,null,null,null,null,null,null,null,null,null,null,null,null,null,null,null,null,null,null,null,"ceciljulio@hotmail.com","cecil camargo"]
[null,"",null,null,null,null,null,null,0,null,null,null,null,0,0,"",null,null,null,null,null,0,"",null,null,null,null,null,null,null,null,null,null,null,null,null,null,null,null,null,null,null,null,null,null,null,null,null,null,null,null,null,null,null,null,null,null,null,null,null,null,null,null,null,null,null,null,null,null,null,null,null,null,null,null,null,null,null,null,null,null,null,null,null,null,null,null,null,null,null,null,null,null,null,null,null,null,null,null,null,null,null,null,null,null,null,null,null,null,null,null,null,null,null,null,null,null,null,null,null,null,null,null,null,null,null,null,null,null,null,null,null,null,null,null,null,null,null,null,null,null,null,null,null,null,null,null,null,null,null,null,null,null,null,null,null,null,null,null,null,null,null,null,null,null,null,null,null,null,null,null,null,null,null,null,null,null,null,null,null,null,null,null,null,null,null,null,null,null,null,null,null,null,null,null,null,null,null,null,null,null,null,null,null,null,null,null,null,null,null,null,null,null,null,null,null,null,null,null,null,null,null,null,null,null,null,null,null,null,null,null,null,null,null,null,null,null,null,null,null,null,null,null,null,null,null,null,null,null,null,null,null,null,null,null,null,null,null,null,"jaromero85@yahoo.es","Jose Antonio Romero Galindo"]
[null,"",null,null,null,null,null,null,0,null,null,null,null,0,0,"",null,null,null,null,null,0,"",null,null,null,null,null,null,null,null,null,null,null,null,null,null,null,null,null,null,null,null,null,null,null,null,null,null,null,null,null,null,null,null,null,null,null,null,null,null,null,null,null,null,null,null,null,null,null,null,null,null,null,null,null,null,null,null,null,null,null,null,null,null,null,null,null,null,null,null,null,null,null,null,null,null,null,null,null,null,null,null,null,null,null,null,null,null,null,null,null,null,null,null,null,null,null,null,null,null,null,null,null,null,null,null,null,null,null,null,null,null,null,null,null,null,null,null,null,null,null,null,null,null,null,null,null,null,null,null,null,null,null,null,null,null,null,null,null,null,null,null,null,null,null,null,null,null,null,null,null,null,null,null,null,null,null,null,null,null,null,null,null,null,null,null,null,null,null,null,null,null,null,null,null,null,null,null,null,null,null,null,null,null,null,null,null,null,null,null,null,null,null,null,null,null,null,null,null,null,null,null,null,null,null,null,null,null,null,null,null,null,null,null,null,null,null,null,null,null,null,null,null,null,null,null,null,null,null,null,null,null,null,null,null,null,null,null,"contabilidadbta@gmail.com","JOSE LUIS PARRA"]
[null,"",null,null,null,null,null,null,0,null,null,null,null,0,0,"",null,null,null,null,null,0,"",null,null,null,null,null,null,null,null,null,null,null,null,null,null,null,null,null,null,null,null,null,null,null,null,null,null,null,null,null,null,null,null,null,null,null,null,null,null,null,null,null,null,null,null,null,null,null,null,null,null,null,null,null,null,null,null,null,null,null,null,null,null,null,null,null,null,null,null,null,null,null,null,null,null,null,null,null,null,null,null,null,null,null,null,null,null,null,null,null,null,null,null,null,null,null,null,null,null,null,null,null,null,null,null,null,null,null,null,null,null,null,null,null,null,null,null,null,null,null,null,null,null,null,null,null,null,null,null,null,null,null,null,null,null,null,null,null,null,null,null,null,null,null,null,null,null,null,null,null,null,null,null,null,null,null,null,null,null,null,null,null,null,null,null,null,null,null,null,null,null,null,null,null,null,null,null,null,null,null,null,null,null,null,null,null,null,null,null,null,null,null,null,null,null,null,null,null,null,null,null,null,null,null,null,null,null,null,null,null,null,null,null,null,null,null,null,null,null,null,null,null,null,null,null,null,null,null,null,null,null,null,null,null,null,null,null,"gilberto1274@yahoo.com","GILBERTO RIOS GONZALEZ"]
[null,"",null,null,null,null,null,null,0,null,null,null,null,0,0,"",null,null,null,null,null,0,"",null,null,null,null,null,null,null,null,null,null,null,null,null,null,null,null,null,null,null,null,null,null,null,null,null,null,null,null,null,null,null,null,null,null,null,null,null,null,null,null,null,null,null,null,null,null,null,null,null,null,null,null,null,null,null,null,null,null,null,null,null,null,null,null,null,null,null,null,null,null,null,null,null,null,null,null,null,null,null,null,null,null,null,null,null,null,null,null,null,null,null,null,null,null,null,null,null,null,null,null,null,null,null,null,null,null,null,null,null,null,null,null,null,null,null,null,null,null,null,null,null,null,null,null,null,null,null,null,null,null,null,null,null,null,null,null,null,null,null,null,null,null,null,null,null,null,null,null,null,null,null,null,null,null,null,null,null,null,null,null,null,null,null,null,null,null,null,null,null,null,null,null,null,null,null,null,null,null,null,null,null,null,null,null,null,null,null,null,null,null,null,null,null,null,null,null,null,null,null,null,null,null,null,null,null,null,null,null,null,null,null,null,null,null,null,null,null,null,null,null,null,null,null,null,null,null,null,null,null,null,null,null,null,null,null,null,"silvamolinarescarlos@yahoo.com","Carlos Ramon Silva Molinares"]
[null,"",null,null,null,null,null,null,0,null,null,null,null,0,0,"",null,null,null,null,null,0,"",null,null,null,null,null,null,null,null,null,null,null,null,null,null,null,null,null,null,null,null,null,null,null,null,null,null,null,null,null,null,null,null,null,null,null,null,null,null,null,null,null,null,null,null,null,null,null,null,null,null,null,null,null,null,null,null,null,null,null,null,null,null,null,null,null,null,null,null,null,null,null,null,null,null,null,null,null,null,null,null,null,null,null,null,null,null,null,null,null,null,null,null,null,null,null,null,null,null,null,null,null,null,null,null,null,null,null,null,null,null,null,null,null,null,null,null,null,null,null,null,null,null,null,null,null,null,null,null,null,null,null,null,null,null,null,null,null,null,null,null,null,null,null,null,null,null,null,null,null,null,null,null,null,null,null,null,null,null,null,null,null,null,null,null,null,null,null,null,null,null,null,null,null,null,null,null,null,null,null,null,null,null,null,null,null,null,null,null,null,null,null,null,null,null,null,null,null,null,null,null,null,null,null,null,null,null,null,null,null,null,null,null,null,null,null,null,null,null,null,null,null,null,null,null,null,null,null,null,null,null,null,null,null,null,null,null,"luzma.jimenez@hotmail.com","LUZ MARIA JIMENEZ "]
[null,"",null,null,null,null,null,null,0,null,null,null,null,0,0,"",null,null,null,null,null,0,"",null,null,null,null,null,null,null,null,null,null,null,null,null,null,null,null,null,null,null,null,null,null,null,null,null,null,null,null,null,null,null,null,null,null,null,null,null,null,null,null,null,null,null,null,null,null,null,null,null,null,null,null,null,null,null,null,null,null,null,null,null,null,null,null,null,null,null,null,null,null,null,null,null,null,null,null,null,null,null,null,null,null,null,null,null,null,null,null,null,null,null,null,null,null,null,null,null,null,null,null,null,null,null,null,null,null,null,null,null,null,null,null,null,null,null,null,null,null,null,null,null,null,null,null,null,null,null,null,null,null,null,null,null,null,null,null,null,null,null,null,null,null,null,null,null,null,null,null,null,null,null,null,null,null,null,null,null,null,null,null,null,null,null,null,null,null,null,null,null,null,null,null,null,null,null,null,null,null,null,null,null,null,null,null,null,null,null,null,null,null,null,null,null,null,null,null,null,null,null,null,null,null,null,null,null,null,null,null,null,null,null,null,null,null,null,null,null,null,null,null,null,null,null,null,null,null,null,null,null,null,null,null,null,null,null,null,"oscarcebe@gmail.com","Oscar Armando Ceballos Bedoya"]
[null,"",null,null,null,null,null,null,0,null,null,null,null,0,0,"",null,null,null,null,null,0,"",null,null,null,null,null,null,null,null,null,null,null,null,null,null,null,null,null,null,null,null,null,null,null,null,null,null,null,null,null,null,null,null,null,null,null,null,null,null,null,null,null,null,null,null,null,null,null,null,null,null,null,null,null,null,null,null,null,null,null,null,null,null,null,null,null,null,null,null,null,null,null,null,null,null,null,null,null,null,null,null,null,null,null,null,null,null,null,null,null,null,null,null,null,null,null,null,null,null,null,null,null,null,null,null,null,null,null,null,null,null,null,null,null,null,null,null,null,null,null,null,null,null,null,null,null,null,null,null,null,null,null,null,null,null,null,null,null,null,null,null,null,null,null,null,null,null,null,null,null,null,null,null,null,null,null,null,null,null,null,null,null,null,null,null,null,null,null,null,null,null,null,null,null,null,null,null,null,null,null,null,null,null,null,null,null,null,null,null,null,null,null,null,null,null,null,null,null,null,null,null,null,null,null,null,null,null,null,null,null,null,null,null,null,null,null,null,null,null,null,null,null,null,null,null,null,null,null,null,null,null,null,null,null,null,null,null,"TONO954@GMAIL.COM"," LUIS ALBERTO RODRIGUEZ BUITRAGO"]
[null,"",null,null,null,null,null,null,0,null,null,null,null,0,0,"",null,null,null,null,null,0,"",null,null,null,null,null,null,null,null,null,null,null,null,null,null,null,null,null,null,null,null,null,null,null,null,null,null,null,null,null,null,null,null,null,null,null,null,null,null,null,null,null,null,null,null,null,null,null,null,null,null,null,null,null,null,null,null,null,null,null,null,null,null,null,null,null,null,null,null,null,null,null,null,null,null,null,null,null,null,null,null,null,null,null,null,null,null,null,null,null,null,null,null,null,null,null,null,null,null,null,null,null,null,null,null,null,null,null,null,null,null,null,null,null,null,null,null,null,null,null,null,null,null,null,null,null,null,null,null,null,null,null,null,null,null,null,null,null,null,null,null,null,null,null,null,null,null,null,null,null,null,null,null,null,null,null,null,null,null,null,null,null,null,null,null,null,null,null,null,null,null,null,null,null,null,null,null,null,null,null,null,null,null,null,null,null,null,null,null,null,null,null,null,null,null,null,null,null,null,null,null,null,null,null,null,null,null,null,null,null,null,null,null,null,null,null,null,null,null,null,null,null,null,null,null,null,null,null,null,null,null,null,null,null,null,null,null,"robin.d.gallego@gmail.com","ROBINSON DAMIAN GALLEGO OROZCO"]
[null,"",null,null,null,null,null,null,0,null,null,null,null,0,0,"",null,null,null,null,null,0,"",null,null,null,null,null,null,null,null,null,null,null,null,null,null,null,null,null,null,null,null,null,null,null,null,null,null,null,null,null,null,null,null,null,null,null,null,null,null,null,null,null,null,null,null,null,null,null,null,null,null,null,null,null,null,null,null,null,null,null,null,null,null,null,null,null,null,null,null,null,null,null,null,null,null,null,null,null,null,null,null,null,null,null,null,null,null,null,null,null,null,null,null,null,null,null,null,null,null,null,null,null,null,null,null,null,null,null,null,null,null,null,null,null,null,null,null,null,null,null,null,null,null,null,null,null,null,null,null,null,null,null,null,null,null,null,null,null,null,null,null,null,null,null,null,null,null,null,null,null,null,null,null,null,null,null,null,null,null,null,null,null,null,null,null,null,null,null,null,null,null,null,null,null,null,null,null,null,null,null,null,null,null,null,null,null,null,null,null,null,null,null,null,null,null,null,null,null,null,null,null,null,null,null,null,null,null,null,null,null,null,null,null,null,null,null,null,null,null,null,null,null,null,null,null,null,null,null,null,null,null,null,null,null,null,null,null,"yramirezlopez@gmail.com","Yenny Lorena Ramírez López"]
[null,"",null,null,null,null,null,null,0,null,null,null,null,0,0,"",null,null,null,null,null,0,"",null,null,null,null,null,null,null,null,null,null,null,null,null,null,null,null,null,null,null,null,null,null,null,null,null,null,null,null,null,null,null,null,null,null,null,null,null,null,null,null,null,null,null,null,null,null,null,null,null,null,null,null,null,null,null,null,null,null,null,null,null,null,null,null,null,null,null,null,null,null,null,null,null,null,null,null,null,null,null,null,null,null,null,null,null,null,null,null,null,null,null,null,null,null,null,null,null,null,null,null,null,null,null,null,null,null,null,null,null,null,null,null,null,null,null,null,null,null,null,null,null,null,null,null,null,null,null,null,null,null,null,null,null,null,null,null,null,null,null,null,null,null,null,null,null,null,null,null,null,null,null,null,null,null,null,null,null,null,null,null,null,null,null,null,null,null,null,null,null,null,null,null,null,null,null,null,null,null,null,null,null,null,null,null,null,null,null,null,null,null,null,null,null,null,null,null,null,null,null,null,null,null,null,null,null,null,null,null,null,null,null,null,null,null,null,null,null,null,null,null,null,null,null,null,null,null,null,null,null,null,null,null,null,null,null,null,"marisolagudelo39@hotmail.com","CENTRO DE DIAGNOSTICO AUTOMOTRIZ CHOCO SAS"]
[null,"",null,null,null,null,null,null,0,null,null,null,null,0,0,"",null,null,null,null,null,0,"",null,null,null,null,null,null,null,null,null,null,null,null,null,null,null,null,null,null,null,null,null,null,null,null,null,null,null,null,null,null,null,null,null,null,null,null,null,null,null,null,null,null,null,null,null,null,null,null,null,null,null,null,null,null,null,null,null,null,null,null,null,null,null,null,null,null,null,null,null,null,null,null,null,null,null,null,null,null,null,null,null,null,null,null,null,null,null,null,null,null,null,null,null,null,null,null,null,null,null,null,null,null,null,null,null,null,null,null,null,null,null,null,null,null,null,null,null,null,null,null,null,null,null,null,null,null,null,null,null,null,null,null,null,null,null,null,null,null,null,null,null,null,null,null,null,null,null,null,null,null,null,null,null,null,null,null,null,null,null,null,null,null,null,null,null,null,null,null,null,null,null,null,null,null,null,null,null,null,null,null,null,null,null,null,null,null,null,null,null,null,null,null,null,null,null,null,null,null,null,null,null,null,null,null,null,null,null,null,null,null,null,null,null,null,null,null,null,null,null,null,null,null,null,null,null,null,null,null,null,null,null,null,null,null,null,null,"MARY_1908_@HOTMAIL.COM"," ISABEL GARCIA"]
[null,"",null,null,null,null,null,null,0,null,null,null,null,0,0,"",null,null,null,null,null,0,"",null,null,null,null,null,null,null,null,null,null,null,null,null,null,null,null,null,null,null,null,null,null,null,null,null,null,null,null,null,null,null,null,null,null,null,null,null,null,null,null,null,null,null,null,null,null,null,null,null,null,null,null,null,null,null,null,null,null,null,null,null,null,null,null,null,null,null,null,null,null,null,null,null,null,null,null,null,null,null,null,null,null,null,null,null,null,null,null,null,null,null,null,null,null,null,null,null,null,null,null,null,null,null,null,null,null,null,null,null,null,null,null,null,null,null,null,null,null,null,null,null,null,null,null,null,null,null,null,null,null,null,null,null,null,null,null,null,null,null,null,null,null,null,null,null,null,null,null,null,null,null,null,null,null,null,null,null,null,null,null,null,null,null,null,null,null,null,null,null,null,null,null,null,null,null,null,null,null,null,null,null,null,null,null,null,null,null,null,null,null,null,null,null,null,null,null,null,null,null,null,null,null,null,null,null,null,null,null,null,null,null,null,null,null,null,null,null,null,null,null,null,null,null,null,null,null,null,null,null,null,null,null,null,null,null,null,"jutobarm@hotmail.com","JULIO ALEXANDER TOBAR MARTINEZ"]
[null,"",null,null,null,null,null,null,0,null,null,null,null,0,0,"",null,null,null,null,null,0,"",null,null,null,null,null,null,null,null,null,null,null,null,null,null,null,null,null,null,null,null,null,null,null,null,null,null,null,null,null,null,null,null,null,null,null,null,null,null,null,null,null,null,null,null,null,null,null,null,null,null,null,null,null,null,null,null,null,null,null,null,null,null,null,null,null,null,null,null,null,null,null,null,null,null,null,null,null,null,null,null,null,null,null,null,null,null,null,null,null,null,null,null,null,null,null,null,null,null,null,null,null,null,null,null,null,null,null,null,null,null,null,null,null,null,null,null,null,null,null,null,null,null,null,null,null,null,null,null,null,null,null,null,null,null,null,null,null,null,null,null,null,null,null,null,null,null,null,null,null,null,null,null,null,null,null,null,null,null,null,null,null,null,null,null,null,null,null,null,null,null,null,null,null,null,null,null,null,null,null,null,null,null,null,null,null,null,null,null,null,null,null,null,null,null,null,null,null,null,null,null,null,null,null,null,null,null,null,null,null,null,null,null,null,null,null,null,null,null,null,null,null,null,null,null,null,null,null,null,null,null,null,null,null,null,null,null,"pintumaterialesla11@hotmail.com"," Armando Vera Florez - RUBY ROJAS"]
[null,"",null,null,null,null,null,null,0,null,null,null,null,0,0,"",null,null,null,null,null,0,"",null,null,null,null,null,null,null,null,null,null,null,null,null,null,null,null,null,null,null,null,null,null,null,null,null,null,null,null,null,null,null,null,null,null,null,null,null,null,null,null,null,null,null,null,null,null,null,null,null,null,null,null,null,null,null,null,null,null,null,null,null,null,null,null,null,null,null,null,null,null,null,null,null,null,null,null,null,null,null,null,null,null,null,null,null,null,null,null,null,null,null,null,null,null,null,null,null,null,null,null,null,null,null,null,null,null,null,null,null,null,null,null,null,null,null,null,null,null,null,null,null,null,null,null,null,null,null,null,null,null,null,null,null,null,null,null,null,null,null,null,null,null,null,null,null,null,null,null,null,null,null,null,null,null,null,null,null,null,null,null,null,null,null,null,null,null,null,null,null,null,null,null,null,null,null,null,null,null,null,null,null,null,null,null,null,null,null,null,null,null,null,null,null,null,null,null,null,null,null,null,null,null,null,null,null,null,null,null,null,null,null,null,null,null,null,null,null,null,null,null,null,null,null,null,null,null,null,null,null,null,null,null,null,null,null,null,"cyaprofesionalessas1@gmail.com","CYA PROFESIONALES SAS"]
[null,"",null,null,null,null,null,null,0,null,null,null,null,0,0,"",null,null,null,null,null,0,"",null,null,null,null,null,null,null,null,null,null,null,null,null,null,null,null,null,null,null,null,null,null,null,null,null,null,null,null,null,null,null,null,null,null,null,null,null,null,null,null,null,null,null,null,null,null,null,null,null,null,null,null,null,null,null,null,null,null,null,null,null,null,null,null,null,null,null,null,null,null,null,null,null,null,null,null,null,null,null,null,null,null,null,null,null,null,null,null,null,null,null,null,null,null,null,null,null,null,null,null,null,null,null,null,null,null,null,null,null,null,null,null,null,null,null,null,null,null,null,null,null,null,null,null,null,null,null,null,null,null,null,null,null,null,null,null,null,null,null,null,null,null,null,null,null,null,null,null,null,null,null,null,null,null,null,null,null,null,null,null,null,null,null,null,null,null,null,null,null,null,null,null,null,null,null,null,null,null,null,null,null,null,null,null,null,null,null,null,null,null,null,null,null,null,null,null,null,null,null,null,null,null,null,null,null,null,null,null,null,null,null,null,null,null,null,null,null,null,null,null,null,null,null,null,null,null,null,null,null,null,null,null,null,null,null,null,"Yohanely10.03@gmail.com","Yohanely Hernández"]
[null,"",null,null,null,null,null,null,0,null,null,null,null,0,0,"",null,null,null,null,null,0,"",null,null,null,null,null,null,null,null,null,null,null,null,null,null,null,null,null,null,null,null,null,null,null,null,null,null,null,null,null,null,null,null,null,null,null,null,null,null,null,null,null,null,null,null,null,null,null,null,null,null,null,null,null,null,null,null,null,null,null,null,null,null,null,null,null,null,null,null,null,null,null,null,null,null,null,null,null,null,null,null,null,null,null,null,null,null,null,null,null,null,null,null,null,null,null,null,null,null,null,null,null,null,null,null,null,null,null,null,null,null,null,null,null,null,null,null,null,null,null,null,null,null,null,null,null,null,null,null,null,null,null,null,null,null,null,null,null,null,null,null,null,null,null,null,null,null,null,null,null,null,null,null,null,null,null,null,null,null,null,null,null,null,null,null,null,null,null,null,null,null,null,null,null,null,null,null,null,null,null,null,null,null,null,null,null,null,null,null,null,null,null,null,null,null,null,null,null,null,null,null,null,null,null,null,null,null,null,null,null,null,null,null,null,null,null,null,null,null,null,null,null,null,null,null,null,null,null,null,null,null,null,null,null,null,null,null,"luzamparou_9@hotmail.com"," LUZ AMPARO URREA ORTIZ"]
[null,"",null,null,null,null,null,null,0,null,null,null,null,0,0,"",null,null,null,null,null,0,"",null,null,null,null,null,null,null,null,null,null,null,null,null,null,null,null,null,null,null,null,null,null,null,null,null,null,null,null,null,null,null,null,null,null,null,null,null,null,null,null,null,null,null,null,null,null,null,null,null,null,null,null,null,null,null,null,null,null,null,null,null,null,null,null,null,null,null,null,null,null,null,null,null,null,null,null,null,null,null,null,null,null,null,null,null,null,null,null,null,null,null,null,null,null,null,null,null,null,null,null,null,null,null,null,null,null,null,null,null,null,null,null,null,null,null,null,null,null,null,null,null,null,null,null,null,null,null,null,null,null,null,null,null,null,null,null,null,null,null,null,null,null,null,null,null,null,null,null,null,null,null,null,null,null,null,null,null,null,null,null,null,null,null,null,null,null,null,null,null,null,null,null,null,null,null,null,null,null,null,null,null,null,null,null,null,null,null,null,null,null,null,null,null,null,null,null,null,null,null,null,null,null,null,null,null,null,null,null,null,null,null,null,null,null,null,null,null,null,null,null,null,null,null,null,null,null,null,null,null,null,null,null,null,null,null,null,"contabilidadmues@hotmail.com","Mundial de Estructuras y Rocas"]
[null,"",null,null,null,null,null,null,0,null,null,null,null,0,0,"",null,null,null,null,null,0,"",null,null,null,null,null,null,null,null,null,null,null,null,null,null,null,null,null,null,null,null,null,null,null,null,null,null,null,null,null,null,null,null,null,null,null,null,null,null,null,null,null,null,null,null,null,null,null,null,null,null,null,null,null,null,null,null,null,null,null,null,null,null,null,null,null,null,null,null,null,null,null,null,null,null,null,null,null,null,null,null,null,null,null,null,null,null,null,null,null,null,null,null,null,null,null,null,null,null,null,null,null,null,null,null,null,null,null,null,null,null,null,null,null,null,null,null,null,null,null,null,null,null,null,null,null,null,null,null,null,null,null,null,null,null,null,null,null,null,null,null,null,null,null,null,null,null,null,null,null,null,null,null,null,null,null,null,null,null,null,null,null,null,null,null,null,null,null,null,null,null,null,null,null,null,null,null,null,null,null,null,null,null,null,null,null,null,null,null,null,null,null,null,null,null,null,null,null,null,null,null,null,null,null,null,null,null,null,null,null,null,null,null,null,null,null,null,null,null,null,null,null,null,null,null,null,null,null,null,null,null,null,null,null,null,null,null,"cesarveramoreno@hotmail.com","Cesar Augusto Vera Moreno"]
[null,"",null,null,null,null,null,null,0,null,null,null,null,0,0,"",null,null,null,null,null,0,"",null,null,null,null,null,null,null,null,null,null,null,null,null,null,null,null,null,null,null,null,null,null,null,null,null,null,null,null,null,null,null,null,null,null,null,null,null,null,null,null,null,null,null,null,null,null,null,null,null,null,null,null,null,null,null,null,null,null,null,null,null,null,null,null,null,null,null,null,null,null,null,null,null,null,null,null,null,null,null,null,null,null,null,null,null,null,null,null,null,null,null,null,null,null,null,null,null,null,null,null,null,null,null,null,null,null,null,null,null,null,null,null,null,null,null,null,null,null,null,null,null,null,null,null,null,null,null,null,null,null,null,null,null,null,null,null,null,null,null,null,null,null,null,null,null,null,null,null,null,null,null,null,null,null,null,null,null,null,null,null,null,null,null,null,null,null,null,null,null,null,null,null,null,null,null,null,null,null,null,null,null,null,null,null,null,null,null,null,null,null,null,null,null,null,null,null,null,null,null,null,null,null,null,null,null,null,null,null,null,null,null,null,null,null,null,null,null,null,null,null,null,null,null,null,null,null,null,null,null,null,null,null,null,null,null,null,"flina_1985@hotmail.com"," INNORCALDAS SAS"]
[null,"",null,null,null,null,null,null,0,null,null,null,null,0,0,"",null,null,null,null,null,0,"",null,null,null,null,null,null,null,null,null,null,null,null,null,null,null,null,null,null,null,null,null,null,null,null,null,null,null,null,null,null,null,null,null,null,null,null,null,null,null,null,null,null,null,null,null,null,null,null,null,null,null,null,null,null,null,null,null,null,null,null,null,null,null,null,null,null,null,null,null,null,null,null,null,null,null,null,null,null,null,null,null,null,null,null,null,null,null,null,null,null,null,null,null,null,null,null,null,null,null,null,null,null,null,null,null,null,null,null,null,null,null,null,null,null,null,null,null,null,null,null,null,null,null,null,null,null,null,null,null,null,null,null,null,null,null,null,null,null,null,null,null,null,null,null,null,null,null,null,null,null,null,null,null,null,null,null,null,null,null,null,null,null,null,null,null,null,null,null,null,null,null,null,null,null,null,null,null,null,null,null,null,null,null,null,null,null,null,null,null,null,null,null,null,null,null,null,null,null,null,null,null,null,null,null,null,null,null,null,null,null,null,null,null,null,null,null,null,null,null,null,null,null,null,null,null,null,null,null,null,null,null,null,null,null,null,null,"lhfalla@hotmail.com"," Luis Humberto Falla Via"]
[null,"",null,null,null,null,null,null,0,null,null,null,null,0,0,"",null,null,null,null,null,0,"",null,null,null,null,null,null,null,null,null,null,null,null,null,null,null,null,null,null,null,null,null,null,null,null,null,null,null,null,null,null,null,null,null,null,null,null,null,null,null,null,null,null,null,null,null,null,null,null,null,null,null,null,null,null,null,null,null,null,null,null,null,null,null,null,null,null,null,null,null,null,null,null,null,null,null,null,null,null,null,null,null,null,null,null,null,null,null,null,null,null,null,null,null,null,null,null,null,null,null,null,null,null,null,null,null,null,null,null,null,null,null,null,null,null,null,null,null,null,null,null,null,null,null,null,null,null,null,null,null,null,null,null,null,null,null,null,null,null,null,null,null,null,null,null,null,null,null,null,null,null,null,null,null,null,null,null,null,null,null,null,null,null,null,null,null,null,null,null,null,null,null,null,null,null,null,null,null,null,null,null,null,null,null,null,null,null,null,null,null,null,null,null,null,null,null,null,null,null,null,null,null,null,null,null,null,null,null,null,null,null,null,null,null,null,null,null,null,null,null,null,null,null,null,null,null,null,null,null,null,null,null,null,null,null,null,null,"gerencia.giscontar@gmail.com","DORA RODRIGUEZ"]
[null,"",null,null,null,null,null,null,0,null,null,null,null,0,0,"",null,null,null,null,null,0,"",null,null,null,null,null,null,null,null,null,null,null,null,null,null,null,null,null,null,null,null,null,null,null,null,null,null,null,null,null,null,null,null,null,null,null,null,null,null,null,null,null,null,null,null,null,null,null,null,null,null,null,null,null,null,null,null,null,null,null,null,null,null,null,null,null,null,null,null,null,null,null,null,null,null,null,null,null,null,null,null,null,null,null,null,null,null,null,null,null,null,null,null,null,null,null,null,null,null,null,null,null,null,null,null,null,null,null,null,null,null,null,null,null,null,null,null,null,null,null,null,null,null,null,null,null,null,null,null,null,null,null,null,null,null,null,null,null,null,null,null,null,null,null,null,null,null,null,null,null,null,null,null,null,null,null,null,null,null,null,null,null,null,null,null,null,null,null,null,null,null,null,null,null,null,null,null,null,null,null,null,null,null,null,null,null,null,null,null,null,null,null,null,null,null,null,null,null,null,null,null,null,null,null,null,null,null,null,null,null,null,null,null,null,null,null,null,null,null,null,null,null,null,null,null,null,null,null,null,null,null,null,null,null,null,null,null,"gloriagallego525@hotmail.com","Gloria Mercedes Gallego Arenas"]
[null,"",null,null,null,null,null,null,0,null,null,null,null,0,0,"",null,null,null,null,null,0,"",null,null,null,null,null,null,null,null,null,null,null,null,null,null,null,null,null,null,null,null,null,null,null,null,null,null,null,null,null,null,null,null,null,null,null,null,null,null,null,null,null,null,null,null,null,null,null,null,null,null,null,null,null,null,null,null,null,null,null,null,null,null,null,null,null,null,null,null,null,null,null,null,null,null,null,null,null,null,null,null,null,null,null,null,null,null,null,null,null,null,null,null,null,null,null,null,null,null,null,null,null,null,null,null,null,null,null,null,null,null,null,null,null,null,null,null,null,null,null,null,null,null,null,null,null,null,null,null,null,null,null,null,null,null,null,null,null,null,null,null,null,null,null,null,null,null,null,null,null,null,null,null,null,null,null,null,null,null,null,null,null,null,null,null,null,null,null,null,null,null,null,null,null,null,null,null,null,null,null,null,null,null,null,null,null,null,null,null,null,null,null,null,null,null,null,null,null,null,null,null,null,null,null,null,null,null,null,null,null,null,null,null,null,null,null,null,null,null,null,null,null,null,null,null,null,null,null,null,null,null,null,null,null,null,null,null,"joseperez1493@gmail.com","Jose Ricardo Perez Torres"]
[null,"",null,null,null,null,null,null,0,null,null,null,null,0,0,"",null,null,null,null,null,0,"",null,null,null,null,null,null,null,null,null,null,null,null,null,null,null,null,null,null,null,null,null,null,null,null,null,null,null,null,null,null,null,null,null,null,null,null,null,null,null,null,null,null,null,null,null,null,null,null,null,null,null,null,null,null,null,null,null,null,null,null,null,null,null,null,null,null,null,null,null,null,null,null,null,null,null,null,null,null,null,null,null,null,null,null,null,null,null,null,null,null,null,null,null,null,null,null,null,null,null,null,null,null,null,null,null,null,null,null,null,null,null,null,null,null,null,null,null,null,null,null,null,null,null,null,null,null,null,null,null,null,null,null,null,null,null,null,null,null,null,null,null,null,null,null,null,null,null,null,null,null,null,null,null,null,null,null,null,null,null,null,null,null,null,null,null,null,null,null,null,null,null,null,null,null,null,null,null,null,null,null,null,null,null,null,null,null,null,null,null,null,null,null,null,null,null,null,null,null,null,null,null,null,null,null,null,null,null,null,null,null,null,null,null,null,null,null,null,null,null,null,null,null,null,null,null,null,null,null,null,null,null,null,null,null,null,null,"stellita66@hotmail.com"," Luz Stella Castaño Benjumea"]
[null,"",null,null,null,null,null,null,0,null,null,null,null,0,0,"",null,null,null,null,null,0,"",null,null,null,null,null,null,null,null,null,null,null,null,null,null,null,null,null,null,null,null,null,null,null,null,null,null,null,null,null,null,null,null,null,null,null,null,null,null,null,null,null,null,null,null,null,null,null,null,null,null,null,null,null,null,null,null,null,null,null,null,null,null,null,null,null,null,null,null,null,null,null,null,null,null,null,null,null,null,null,null,null,null,null,null,null,null,null,null,null,null,null,null,null,null,null,null,null,null,null,null,null,null,null,null,null,null,null,null,null,null,null,null,null,null,null,null,null,null,null,null,null,null,null,null,null,null,null,null,null,null,null,null,null,null,null,null,null,null,null,null,null,null,null,null,null,null,null,null,null,null,null,null,null,null,null,null,null,null,null,null,null,null,null,null,null,null,null,null,null,null,null,null,null,null,null,null,null,null,null,null,null,null,null,null,null,null,null,null,null,null,null,null,null,null,null,null,null,null,null,null,null,null,null,null,null,null,null,null,null,null,null,null,null,null,null,null,null,null,null,null,null,null,null,null,null,null,null,null,null,null,null,null,null,null,null,null,"JBASESORIAS2001@HOTMAIL.COM","JAIME BETANCOURT RODRIGUEZ"]
[null,"",null,null,null,null,null,null,0,null,null,null,null,0,0,"",null,null,null,null,null,0,"",null,null,null,null,null,null,null,null,null,null,null,null,null,null,null,null,null,null,null,null,null,null,null,null,null,null,null,null,null,null,null,null,null,null,null,null,null,null,null,null,null,null,null,null,null,null,null,null,null,null,null,null,null,null,null,null,null,null,null,null,null,null,null,null,null,null,null,null,null,null,null,null,null,null,null,null,null,null,null,null,null,null,null,null,null,null,null,null,null,null,null,null,null,null,null,null,null,null,null,null,null,null,null,null,null,null,null,null,null,null,null,null,null,null,null,null,null,null,null,null,null,null,null,null,null,null,null,null,null,null,null,null,null,null,null,null,null,null,null,null,null,null,null,null,null,null,null,null,null,null,null,null,null,null,null,null,null,null,null,null,null,null,null,null,null,null,null,null,null,null,null,null,null,null,null,null,null,null,null,null,null,null,null,null,null,null,null,null,null,null,null,null,null,null,null,null,null,null,null,null,null,null,null,null,null,null,null,null,null,null,null,null,null,null,null,null,null,null,null,null,null,null,null,null,null,null,null,null,null,null,null,null,null,null,null,null,"eduardogaon@gmail.com","VICENTE EDUARDO GAON SALAZAR"]
[null,"",null,null,null,null,null,null,0,null,null,null,null,0,0,"",null,null,null,null,null,0,"",null,null,null,null,null,null,null,null,null,null,null,null,null,null,null,null,null,null,null,null,null,null,null,null,null,null,null,null,null,null,null,null,null,null,null,null,null,null,null,null,null,null,null,null,null,null,null,null,null,null,null,null,null,null,null,null,null,null,null,null,null,null,null,null,null,null,null,null,null,null,null,null,null,null,null,null,null,null,null,null,null,null,null,null,null,null,null,null,null,null,null,null,null,null,null,null,null,null,null,null,null,null,null,null,null,null,null,null,null,null,null,null,null,null,null,null,null,null,null,null,null,null,null,null,null,null,null,null,null,null,null,null,null,null,null,null,null,null,null,null,null,null,null,null,null,null,null,null,null,null,null,null,null,null,null,null,null,null,null,null,null,null,null,null,null,null,null,null,null,null,null,null,null,null,null,null,null,null,null,null,null,null,null,null,null,null,null,null,null,null,null,null,null,null,null,null,null,null,null,null,null,null,null,null,null,null,null,null,null,null,null,null,null,null,null,null,null,null,null,null,null,null,null,null,null,null,null,null,null,null,null,null,null,null,null,null,"bbecerradealjure@gmail.com","Bertha Marina Becerra Reyes"]
[null,"",null,null,null,null,null,null,0,null,null,null,null,0,0,"",null,null,null,null,null,0,"",null,null,null,null,null,null,null,null,null,null,null,null,null,null,null,null,null,null,null,null,null,null,null,null,null,null,null,null,null,null,null,null,null,null,null,null,null,null,null,null,null,null,null,null,null,null,null,null,null,null,null,null,null,null,null,null,null,null,null,null,null,null,null,null,null,null,null,null,null,null,null,null,null,null,null,null,null,null,null,null,null,null,null,null,null,null,null,null,null,null,null,null,null,null,null,null,null,null,null,null,null,null,null,null,null,null,null,null,null,null,null,null,null,null,null,null,null,null,null,null,null,null,null,null,null,null,null,null,null,null,null,null,null,null,null,null,null,null,null,null,null,null,null,null,null,null,null,null,null,null,null,null,null,null,null,null,null,null,null,null,null,null,null,null,null,null,null,null,null,null,null,null,null,null,null,null,null,null,null,null,null,null,null,null,null,null,null,null,null,null,null,null,null,null,null,null,null,null,null,null,null,null,null,null,null,null,null,null,null,null,null,null,null,null,null,null,null,null,null,null,null,null,null,null,null,null,null,null,null,null,null,null,null,null,null,null,"diana.infante@vectorgeo.co","Diana Infante"]
[null,"",null,null,null,null,null,null,0,null,null,null,null,0,0,"",null,null,null,null,null,0,"",null,null,null,null,null,null,null,null,null,null,null,null,null,null,null,null,null,null,null,null,null,null,null,null,null,null,null,null,null,null,null,null,null,null,null,null,null,null,null,null,null,null,null,null,null,null,null,null,null,null,null,null,null,null,null,null,null,null,null,null,null,null,null,null,null,null,null,null,null,null,null,null,null,null,null,null,null,null,null,null,null,null,null,null,null,null,null,null,null,null,null,null,null,null,null,null,null,null,null,null,null,null,null,null,null,null,null,null,null,null,null,null,null,null,null,null,null,null,null,null,null,null,null,null,null,null,null,null,null,null,null,null,null,null,null,null,null,null,null,null,null,null,null,null,null,null,null,null,null,null,null,null,null,null,null,null,null,null,null,null,null,null,null,null,null,null,null,null,null,null,null,null,null,null,null,null,null,null,null,null,null,null,null,null,null,null,null,null,null,null,null,null,null,null,null,null,null,null,null,null,null,null,null,null,null,null,null,null,null,null,null,null,null,null,null,null,null,null,null,null,null,null,null,null,null,null,null,null,null,null,null,null,null,null,null,null,"servisegduitama@hotmail.com","DIANA CAROL PAMPLONA"]
[null,"",null,null,null,null,null,null,0,null,null,null,null,0,0,"",null,null,null,null,null,0,"",null,null,null,null,null,null,null,null,null,null,null,null,null,null,null,null,null,null,null,null,null,null,null,null,null,null,null,null,null,null,null,null,null,null,null,null,null,null,null,null,null,null,null,null,null,null,null,null,null,null,null,null,null,null,null,null,null,null,null,null,null,null,null,null,null,null,null,null,null,null,null,null,null,null,null,null,null,null,null,null,null,null,null,null,null,null,null,null,null,null,null,null,null,null,null,null,null,null,null,null,null,null,null,null,null,null,null,null,null,null,null,null,null,null,null,null,null,null,null,null,null,null,null,null,null,null,null,null,null,null,null,null,null,null,null,null,null,null,null,null,null,null,null,null,null,null,null,null,null,null,null,null,null,null,null,null,null,null,null,null,null,null,null,null,null,null,null,null,null,null,null,null,null,null,null,null,null,null,null,null,null,null,null,null,null,null,null,null,null,null,null,null,null,null,null,null,null,null,null,null,null,null,null,null,null,null,null,null,null,null,null,null,null,null,null,null,null,null,null,null,null,null,null,null,null,null,null,null,null,null,null,null,null,null,null,null,"danielpatino.cp@gmail.com","Daniel Alejandro Patiño"]
[null,"",null,null,null,null,null,null,0,null,null,null,null,0,0,"",null,null,null,null,null,0,"",null,null,null,null,null,null,null,null,null,null,null,null,null,null,null,null,null,null,null,null,null,null,null,null,null,null,null,null,null,null,null,null,null,null,null,null,null,null,null,null,null,null,null,null,null,null,null,null,null,null,null,null,null,null,null,null,null,null,null,null,null,null,null,null,null,null,null,null,null,null,null,null,null,null,null,null,null,null,null,null,null,null,null,null,null,null,null,null,null,null,null,null,null,null,null,null,null,null,null,null,null,null,null,null,null,null,null,null,null,null,null,null,null,null,null,null,null,null,null,null,null,null,null,null,null,null,null,null,null,null,null,null,null,null,null,null,null,null,null,null,null,null,null,null,null,null,null,null,null,null,null,null,null,null,null,null,null,null,null,null,null,null,null,null,null,null,null,null,null,null,null,null,null,null,null,null,null,null,null,null,null,null,null,null,null,null,null,null,null,null,null,null,null,null,null,null,null,null,null,null,null,null,null,null,null,null,null,null,null,null,null,null,null,null,null,null,null,null,null,null,null,null,null,null,null,null,null,null,null,null,null,null,null,null,null,null,"asecomputocali@hotmail.com","Marco A Carvajal C"]
[null,"",null,null,null,null,null,null,0,null,null,null,null,0,0,"",null,null,null,null,null,0,"",null,null,null,null,null,null,null,null,null,null,null,null,null,null,null,null,null,null,null,null,null,null,null,null,null,null,null,null,null,null,null,null,null,null,null,null,null,null,null,null,null,null,null,null,null,null,null,null,null,null,null,null,null,null,null,null,null,null,null,null,null,null,null,null,null,null,null,null,null,null,null,null,null,null,null,null,null,null,null,null,null,null,null,null,null,null,null,null,null,null,null,null,null,null,null,null,null,null,null,null,null,null,null,null,null,null,null,null,null,null,null,null,null,null,null,null,null,null,null,null,null,null,null,null,null,null,null,null,null,null,null,null,null,null,null,null,null,null,null,null,null,null,null,null,null,null,null,null,null,null,null,null,null,null,null,null,null,null,null,null,null,null,null,null,null,null,null,null,null,null,null,null,null,null,null,null,null,null,null,null,null,null,null,null,null,null,null,null,null,null,null,null,null,null,null,null,null,null,null,null,null,null,null,null,null,null,null,null,null,null,null,null,null,null,null,null,null,null,null,null,null,null,null,null,null,null,null,null,null,null,null,null,null,null,null,null,"contabilidad1@notaria31bogota.co","JULIO CESAR GALVIS MARTINEZ VILLALBA"]
[null,"",null,null,null,null,null,null,0,null,null,null,null,0,0,"",null,null,null,null,null,0,"",null,null,null,null,null,null,null,null,null,null,null,null,null,null,null,null,null,null,null,null,null,null,null,null,null,null,null,null,null,null,null,null,null,null,null,null,null,null,null,null,null,null,null,null,null,null,null,null,null,null,null,null,null,null,null,null,null,null,null,null,null,null,null,null,null,null,null,null,null,null,null,null,null,null,null,null,null,null,null,null,null,null,null,null,null,null,null,null,null,null,null,null,null,null,null,null,null,null,null,null,null,null,null,null,null,null,null,null,null,null,null,null,null,null,null,null,null,null,null,null,null,null,null,null,null,null,null,null,null,null,null,null,null,null,null,null,null,null,null,null,null,null,null,null,null,null,null,null,null,null,null,null,null,null,null,null,null,null,null,null,null,null,null,null,null,null,null,null,null,null,null,null,null,null,null,null,null,null,null,null,null,null,null,null,null,null,null,null,null,null,null,null,null,null,null,null,null,null,null,null,null,null,null,null,null,null,null,null,null,null,null,null,null,null,null,null,null,null,null,null,null,null,null,null,null,null,null,null,null,null,null,null,null,null,null,null,"contador1@solotejas.com","CONSTRUCENTER SOLO TEJAS S A S"]
[null,"",null,null,null,null,null,null,0,null,null,null,null,0,0,"",null,null,null,null,null,0,"",null,null,null,null,null,null,null,null,null,null,null,null,null,null,null,null,null,null,null,null,null,null,null,null,null,null,null,null,null,null,null,null,null,null,null,null,null,null,null,null,null,null,null,null,null,null,null,null,null,null,null,null,null,null,null,null,null,null,null,null,null,null,null,null,null,null,null,null,null,null,null,null,null,null,null,null,null,null,null,null,null,null,null,null,null,null,null,null,null,null,null,null,null,null,null,null,null,null,null,null,null,null,null,null,null,null,null,null,null,null,null,null,null,null,null,null,null,null,null,null,null,null,null,null,null,null,null,null,null,null,null,null,null,null,null,null,null,null,null,null,null,null,null,null,null,null,null,null,null,null,null,null,null,null,null,null,null,null,null,null,null,null,null,null,null,null,null,null,null,null,null,null,null,null,null,null,null,null,null,null,null,null,null,null,null,null,null,null,null,null,null,null,null,null,null,null,null,null,null,null,null,null,null,null,null,null,null,null,null,null,null,null,null,null,null,null,null,null,null,null,null,null,null,null,null,null,null,null,null,null,null,null,null,null,null,null,"agutierrez.balcazar@gmail.com","ARNULFO GUTIERREZ"]
[null,"",null,null,null,null,null,null,0,null,null,null,null,0,0,"",null,null,null,null,null,0,"",null,null,null,null,null,null,null,null,null,null,null,null,null,null,null,null,null,null,null,null,null,null,null,null,null,null,null,null,null,null,null,null,null,null,null,null,null,null,null,null,null,null,null,null,null,null,null,null,null,null,null,null,null,null,null,null,null,null,null,null,null,null,null,null,null,null,null,null,null,null,null,null,null,null,null,null,null,null,null,null,null,null,null,null,null,null,null,null,null,null,null,null,null,null,null,null,null,null,null,null,null,null,null,null,null,null,null,null,null,null,null,null,null,null,null,null,null,null,null,null,null,null,null,null,null,null,null,null,null,null,null,null,null,null,null,null,null,null,null,null,null,null,null,null,null,null,null,null,null,null,null,null,null,null,null,null,null,null,null,null,null,null,null,null,null,null,null,null,null,null,null,null,null,null,null,null,null,null,null,null,null,null,null,null,null,null,null,null,null,null,null,null,null,null,null,null,null,null,null,null,null,null,null,null,null,null,null,null,null,null,null,null,null,null,null,null,null,null,null,null,null,null,null,null,null,null,null,null,null,null,null,null,null,null,null,null,"gustavosanchezgomez@gmail.com","GUSTAVO SANCHEZ G"]
[null,"",null,null,null,null,null,null,0,null,null,null,null,0,0,"",null,null,null,null,null,0,"",null,null,null,null,null,null,null,null,null,null,null,null,null,null,null,null,null,null,null,null,null,null,null,null,null,null,null,null,null,null,null,null,null,null,null,null,null,null,null,null,null,null,null,null,null,null,null,null,null,null,null,null,null,null,null,null,null,null,null,null,null,null,null,null,null,null,null,null,null,null,null,null,null,null,null,null,null,null,null,null,null,null,null,null,null,null,null,null,null,null,null,null,null,null,null,null,null,null,null,null,null,null,null,null,null,null,null,null,null,null,null,null,null,null,null,null,null,null,null,null,null,null,null,null,null,null,null,null,null,null,null,null,null,null,null,null,null,null,null,null,null,null,null,null,null,null,null,null,null,null,null,null,null,null,null,null,null,null,null,null,null,null,null,null,null,null,null,null,null,null,null,null,null,null,null,null,null,null,null,null,null,null,null,null,null,null,null,null,null,null,null,null,null,null,null,null,null,null,null,null,null,null,null,null,null,null,null,null,null,null,null,null,null,null,null,null,null,null,null,null,null,null,null,null,null,null,null,null,null,null,null,null,null,null,null,null,"cemc_2000@hotmail.com"," CARLOS ENRIQUE MARTINEZ CORREA"]
[null,"",null,null,null,null,null,null,0,null,null,null,null,0,0,"",null,null,null,null,null,0,"",null,null,null,null,null,null,null,null,null,null,null,null,null,null,null,null,null,null,null,null,null,null,null,null,null,null,null,null,null,null,null,null,null,null,null,null,null,null,null,null,null,null,null,null,null,null,null,null,null,null,null,null,null,null,null,null,null,null,null,null,null,null,null,null,null,null,null,null,null,null,null,null,null,null,null,null,null,null,null,null,null,null,null,null,null,null,null,null,null,null,null,null,null,null,null,null,null,null,null,null,null,null,null,null,null,null,null,null,null,null,null,null,null,null,null,null,null,null,null,null,null,null,null,null,null,null,null,null,null,null,null,null,null,null,null,null,null,null,null,null,null,null,null,null,null,null,null,null,null,null,null,null,null,null,null,null,null,null,null,null,null,null,null,null,null,null,null,null,null,null,null,null,null,null,null,null,null,null,null,null,null,null,null,null,null,null,null,null,null,null,null,null,null,null,null,null,null,null,null,null,null,null,null,null,null,null,null,null,null,null,null,null,null,null,null,null,null,null,null,null,null,null,null,null,null,null,null,null,null,null,null,null,null,null,null,null,"mmcorrea_0617@hotmail.com","MILEVIS CORREA"]
[null,"",null,null,null,null,null,null,0,null,null,null,null,0,0,"",null,null,null,null,null,0,"",null,null,null,null,null,null,null,null,null,null,null,null,null,null,null,null,null,null,null,null,null,null,null,null,null,null,null,null,null,null,null,null,null,null,null,null,null,null,null,null,null,null,null,null,null,null,null,null,null,null,null,null,null,null,null,null,null,null,null,null,null,null,null,null,null,null,null,null,null,null,null,null,null,null,null,null,null,null,null,null,null,null,null,null,null,null,null,null,null,null,null,null,null,null,null,null,null,null,null,null,null,null,null,null,null,null,null,null,null,null,null,null,null,null,null,null,null,null,null,null,null,null,null,null,null,null,null,null,null,null,null,null,null,null,null,null,null,null,null,null,null,null,null,null,null,null,null,null,null,null,null,null,null,null,null,null,null,null,null,null,null,null,null,null,null,null,null,null,null,null,null,null,null,null,null,null,null,null,null,null,null,null,null,null,null,null,null,null,null,null,null,null,null,null,null,null,null,null,null,null,null,null,null,null,null,null,null,null,null,null,null,null,null,null,null,null,null,null,null,null,null,null,null,null,null,null,null,null,null,null,null,null,null,null,null,null,"maritzacardonae@gmail.com","MARITZA CARDONAE"]
[null,"",null,null,null,null,null,null,0,null,null,null,null,0,0,"",null,null,null,null,null,0,"",null,null,null,null,null,null,null,null,null,null,null,null,null,null,null,null,null,null,null,null,null,null,null,null,null,null,null,null,null,null,null,null,null,null,null,null,null,null,null,null,null,null,null,null,null,null,null,null,null,null,null,null,null,null,null,null,null,null,null,null,null,null,null,null,null,null,null,null,null,null,null,null,null,null,null,null,null,null,null,null,null,null,null,null,null,null,null,null,null,null,null,null,null,null,null,null,null,null,null,null,null,null,null,null,null,null,null,null,null,null,null,null,null,null,null,null,null,null,null,null,null,null,null,null,null,null,null,null,null,null,null,null,null,null,null,null,null,null,null,null,null,null,null,null,null,null,null,null,null,null,null,null,null,null,null,null,null,null,null,null,null,null,null,null,null,null,null,null,null,null,null,null,null,null,null,null,null,null,null,null,null,null,null,null,null,null,null,null,null,null,null,null,null,null,null,null,null,null,null,null,null,null,null,null,null,null,null,null,null,null,null,null,null,null,null,null,null,null,null,null,null,null,null,null,null,null,null,null,null,null,null,null,null,null,null,null," contparr@hotmail.com","ALVARO RUBIO RUBIO"]
[null,"",null,null,null,null,null,null,0,null,null,null,null,0,0,"",null,null,null,null,null,0,"",null,null,null,null,null,null,null,null,null,null,null,null,null,null,null,null,null,null,null,null,null,null,null,null,null,null,null,null,null,null,null,null,null,null,null,null,null,null,null,null,null,null,null,null,null,null,null,null,null,null,null,null,null,null,null,null,null,null,null,null,null,null,null,null,null,null,null,null,null,null,null,null,null,null,null,null,null,null,null,null,null,null,null,null,null,null,null,null,null,null,null,null,null,null,null,null,null,null,null,null,null,null,null,null,null,null,null,null,null,null,null,null,null,null,null,null,null,null,null,null,null,null,null,null,null,null,null,null,null,null,null,null,null,null,null,null,null,null,null,null,null,null,null,null,null,null,null,null,null,null,null,null,null,null,null,null,null,null,null,null,null,null,null,null,null,null,null,null,null,null,null,null,null,null,null,null,null,null,null,null,null,null,null,null,null,null,null,null,null,null,null,null,null,null,null,null,null,null,null,null,null,null,null,null,null,null,null,null,null,null,null,null,null,null,null,null,null,null,null,null,null,null,null,null,null,null,null,null,null,null,null,null,null,null,null,null," jennifer4_4@hotmail.com","JENIFER ANGELICA ESAÑA VALLEJO"]
[null,"",null,null,null,null,null,null,0,null,null,null,null,0,0,"",null,null,null,null,null,0,"",null,null,null,null,null,null,null,null,null,null,null,null,null,null,null,null,null,null,null,null,null,null,null,null,null,null,null,null,null,null,null,null,null,null,null,null,null,null,null,null,null,null,null,null,null,null,null,null,null,null,null,null,null,null,null,null,null,null,null,null,null,null,null,null,null,null,null,null,null,null,null,null,null,null,null,null,null,null,null,null,null,null,null,null,null,null,null,null,null,null,null,null,null,null,null,null,null,null,null,null,null,null,null,null,null,null,null,null,null,null,null,null,null,null,null,null,null,null,null,null,null,null,null,null,null,null,null,null,null,null,null,null,null,null,null,null,null,null,null,null,null,null,null,null,null,null,null,null,null,null,null,null,null,null,null,null,null,null,null,null,null,null,null,null,null,null,null,null,null,null,null,null,null,null,null,null,null,null,null,null,null,null,null,null,null,null,null,null,null,null,null,null,null,null,null,null,null,null,null,null,null,null,null,null,null,null,null,null,null,null,null,null,null,null,null,null,null,null,null,null,null,null,null,null,null,null,null,null,null,null,null,null,null,null,null,null,"sedantexsas@hotmail.com","SEDANTEX SAS"]
[null,"",null,null,null,null,null,null,0,null,null,null,null,0,0,"",null,null,null,null,null,0,"",null,null,null,null,null,null,null,null,null,null,null,null,null,null,null,null,null,null,null,null,null,null,null,null,null,null,null,null,null,null,null,null,null,null,null,null,null,null,null,null,null,null,null,null,null,null,null,null,null,null,null,null,null,null,null,null,null,null,null,null,null,null,null,null,null,null,null,null,null,null,null,null,null,null,null,null,null,null,null,null,null,null,null,null,null,null,null,null,null,null,null,null,null,null,null,null,null,null,null,null,null,null,null,null,null,null,null,null,null,null,null,null,null,null,null,null,null,null,null,null,null,null,null,null,null,null,null,null,null,null,null,null,null,null,null,null,null,null,null,null,null,null,null,null,null,null,null,null,null,null,null,null,null,null,null,null,null,null,null,null,null,null,null,null,null,null,null,null,null,null,null,null,null,null,null,null,null,null,null,null,null,null,null,null,null,null,null,null,null,null,null,null,null,null,null,null,null,null,null,null,null,null,null,null,null,null,null,null,null,null,null,null,null,null,null,null,null,null,null,null,null,null,null,null,null,null,null,null,null,null,null,null,null,null,null,null,"deicycristina0407@gmail.com","Deicy Cristina Ramírez Bedoya"]
[null,"",null,null,null,null,null,null,0,null,null,null,null,0,0,"",null,null,null,null,null,0,"",null,null,null,null,null,null,null,null,null,null,null,null,null,null,null,null,null,null,null,null,null,null,null,null,null,null,null,null,null,null,null,null,null,null,null,null,null,null,null,null,null,null,null,null,null,null,null,null,null,null,null,null,null,null,null,null,null,null,null,null,null,null,null,null,null,null,null,null,null,null,null,null,null,null,null,null,null,null,null,null,null,null,null,null,null,null,null,null,null,null,null,null,null,null,null,null,null,null,null,null,null,null,null,null,null,null,null,null,null,null,null,null,null,null,null,null,null,null,null,null,null,null,null,null,null,null,null,null,null,null,null,null,null,null,null,null,null,null,null,null,null,null,null,null,null,null,null,null,null,null,null,null,null,null,null,null,null,null,null,null,null,null,null,null,null,null,null,null,null,null,null,null,null,null,null,null,null,null,null,null,null,null,null,null,null,null,null,null,null,null,null,null,null,null,null,null,null,null,null,null,null,null,null,null,null,null,null,null,null,null,null,null,null,null,null,null,null,null,null,null,null,null,null,null,null,null,null,null,null,null,null,null,null,null,null,null,"catercoq@yahoo.es","CATERCOQ SAS"]
[null,"",null,null,null,null,null,null,0,null,null,null,null,0,0,"",null,null,null,null,null,0,"",null,null,null,null,null,null,null,null,null,null,null,null,null,null,null,null,null,null,null,null,null,null,null,null,null,null,null,null,null,null,null,null,null,null,null,null,null,null,null,null,null,null,null,null,null,null,null,null,null,null,null,null,null,null,null,null,null,null,null,null,null,null,null,null,null,null,null,null,null,null,null,null,null,null,null,null,null,null,null,null,null,null,null,null,null,null,null,null,null,null,null,null,null,null,null,null,null,null,null,null,null,null,null,null,null,null,null,null,null,null,null,null,null,null,null,null,null,null,null,null,null,null,null,null,null,null,null,null,null,null,null,null,null,null,null,null,null,null,null,null,null,null,null,null,null,null,null,null,null,null,null,null,null,null,null,null,null,null,null,null,null,null,null,null,null,null,null,null,null,null,null,null,null,null,null,null,null,null,null,null,null,null,null,null,null,null,null,null,null,null,null,null,null,null,null,null,null,null,null,null,null,null,null,null,null,null,null,null,null,null,null,null,null,null,null,null,null,null,null,null,null,null,null,null,null,null,null,null,null,null,null,null,null,null,null,null,"dialejocruz@hotmail.com","DIEGO ALEJANDRO ORTIZ CRUZ"]
[null,"",null,null,null,null,null,null,0,null,null,null,null,0,0,"",null,null,null,null,null,0,"",null,null,null,null,null,null,null,null,null,null,null,null,null,null,null,null,null,null,null,null,null,null,null,null,null,null,null,null,null,null,null,null,null,null,null,null,null,null,null,null,null,null,null,null,null,null,null,null,null,null,null,null,null,null,null,null,null,null,null,null,null,null,null,null,null,null,null,null,null,null,null,null,null,null,null,null,null,null,null,null,null,null,null,null,null,null,null,null,null,null,null,null,null,null,null,null,null,null,null,null,null,null,null,null,null,null,null,null,null,null,null,null,null,null,null,null,null,null,null,null,null,null,null,null,null,null,null,null,null,null,null,null,null,null,null,null,null,null,null,null,null,null,null,null,null,null,null,null,null,null,null,null,null,null,null,null,null,null,null,null,null,null,null,null,null,null,null,null,null,null,null,null,null,null,null,null,null,null,null,null,null,null,null,null,null,null,null,null,null,null,null,null,null,null,null,null,null,null,null,null,null,null,null,null,null,null,null,null,null,null,null,null,null,null,null,null,null,null,null,null,null,null,null,null,null,null,null,null,null,null,null,null,null,null,null,null,"macapial@hotmail.com","Marìa Carmenza Piedrahita Albaran"]
[null,"",null,null,null,null,null,null,0,null,null,null,null,0,0,"",null,null,null,null,null,0,"",null,null,null,null,null,null,null,null,null,null,null,null,null,null,null,null,null,null,null,null,null,null,null,null,null,null,null,null,null,null,null,null,null,null,null,null,null,null,null,null,null,null,null,null,null,null,null,null,null,null,null,null,null,null,null,null,null,null,null,null,null,null,null,null,null,null,null,null,null,null,null,null,null,null,null,null,null,null,null,null,null,null,null,null,null,null,null,null,null,null,null,null,null,null,null,null,null,null,null,null,null,null,null,null,null,null,null,null,null,null,null,null,null,null,null,null,null,null,null,null,null,null,null,null,null,null,null,null,null,null,null,null,null,null,null,null,null,null,null,null,null,null,null,null,null,null,null,null,null,null,null,null,null,null,null,null,null,null,null,null,null,null,null,null,null,null,null,null,null,null,null,null,null,null,null,null,null,null,null,null,null,null,null,null,null,null,null,null,null,null,null,null,null,null,null,null,null,null,null,null,null,null,null,null,null,null,null,null,null,null,null,null,null,null,null,null,null,null,null,null,null,null,null,null,null,null,null,null,null,null,null,null,null,null,null,null,"paola10157@hotmail.com","DIANA PAOLA BOJACA"]
[null,"",null,null,null,null,null,null,0,null,null,null,null,0,0,"",null,null,null,null,null,0,"",null,null,null,null,null,null,null,null,null,null,null,null,null,null,null,null,null,null,null,null,null,null,null,null,null,null,null,null,null,null,null,null,null,null,null,null,null,null,null,null,null,null,null,null,null,null,null,null,null,null,null,null,null,null,null,null,null,null,null,null,null,null,null,null,null,null,null,null,null,null,null,null,null,null,null,null,null,null,null,null,null,null,null,null,null,null,null,null,null,null,null,null,null,null,null,null,null,null,null,null,null,null,null,null,null,null,null,null,null,null,null,null,null,null,null,null,null,null,null,null,null,null,null,null,null,null,null,null,null,null,null,null,null,null,null,null,null,null,null,null,null,null,null,null,null,null,null,null,null,null,null,null,null,null,null,null,null,null,null,null,null,null,null,null,null,null,null,null,null,null,null,null,null,null,null,null,null,null,null,null,null,null,null,null,null,null,null,null,null,null,null,null,null,null,null,null,null,null,null,null,null,null,null,null,null,null,null,null,null,null,null,null,null,null,null,null,null,null,null,null,null,null,null,null,null,null,null,null,null,null,null,null,null,null,null,null,"amava05@gmail.com","Ana Maria Valencia Herrera"]
[null,"",null,null,null,null,null,null,0,null,null,null,null,0,0,"",null,null,null,null,null,0,"",null,null,null,null,null,null,null,null,null,null,null,null,null,null,null,null,null,null,null,null,null,null,null,null,null,null,null,null,null,null,null,null,null,null,null,null,null,null,null,null,null,null,null,null,null,null,null,null,null,null,null,null,null,null,null,null,null,null,null,null,null,null,null,null,null,null,null,null,null,null,null,null,null,null,null,null,null,null,null,null,null,null,null,null,null,null,null,null,null,null,null,null,null,null,null,null,null,null,null,null,null,null,null,null,null,null,null,null,null,null,null,null,null,null,null,null,null,null,null,null,null,null,null,null,null,null,null,null,null,null,null,null,null,null,null,null,null,null,null,null,null,null,null,null,null,null,null,null,null,null,null,null,null,null,null,null,null,null,null,null,null,null,null,null,null,null,null,null,null,null,null,null,null,null,null,null,null,null,null,null,null,null,null,null,null,null,null,null,null,null,null,null,null,null,null,null,null,null,null,null,null,null,null,null,null,null,null,null,null,null,null,null,null,null,null,null,null,null,null,null,null,null,null,null,null,null,null,null,null,null,null,null,null,null,null,null,"yuryl.ibanez0390@gmail.com","Yury Lorena Ibañez"]
[null,"",null,null,null,null,null,null,0,null,null,null,null,0,0,"",null,null,null,null,null,0,"",null,null,null,null,null,null,null,null,null,null,null,null,null,null,null,null,null,null,null,null,null,null,null,null,null,null,null,null,null,null,null,null,null,null,null,null,null,null,null,null,null,null,null,null,null,null,null,null,null,null,null,null,null,null,null,null,null,null,null,null,null,null,null,null,null,null,null,null,null,null,null,null,null,null,null,null,null,null,null,null,null,null,null,null,null,null,null,null,null,null,null,null,null,null,null,null,null,null,null,null,null,null,null,null,null,null,null,null,null,null,null,null,null,null,null,null,null,null,null,null,null,null,null,null,null,null,null,null,null,null,null,null,null,null,null,null,null,null,null,null,null,null,null,null,null,null,null,null,null,null,null,null,null,null,null,null,null,null,null,null,null,null,null,null,null,null,null,null,null,null,null,null,null,null,null,null,null,null,null,null,null,null,null,null,null,null,null,null,null,null,null,null,null,null,null,null,null,null,null,null,null,null,null,null,null,null,null,null,null,null,null,null,null,null,null,null,null,null,null,null,null,null,null,null,null,null,null,null,null,null,null,null,null,null,null,null,"sorandi.v@hotmail.com","Sorandi Valencia"]
[null,"",null,null,null,null,null,null,0,null,null,null,null,0,0,"",null,null,null,null,null,0,"",null,null,null,null,null,null,null,null,null,null,null,null,null,null,null,null,null,null,null,null,null,null,null,null,null,null,null,null,null,null,null,null,null,null,null,null,null,null,null,null,null,null,null,null,null,null,null,null,null,null,null,null,null,null,null,null,null,null,null,null,null,null,null,null,null,null,null,null,null,null,null,null,null,null,null,null,null,null,null,null,null,null,null,null,null,null,null,null,null,null,null,null,null,null,null,null,null,null,null,null,null,null,null,null,null,null,null,null,null,null,null,null,null,null,null,null,null,null,null,null,null,null,null,null,null,null,null,null,null,null,null,null,null,null,null,null,null,null,null,null,null,null,null,null,null,null,null,null,null,null,null,null,null,null,null,null,null,null,null,null,null,null,null,null,null,null,null,null,null,null,null,null,null,null,null,null,null,null,null,null,null,null,null,null,null,null,null,null,null,null,null,null,null,null,null,null,null,null,null,null,null,null,null,null,null,null,null,null,null,null,null,null,null,null,null,null,null,null,null,null,null,null,null,null,null,null,null,null,null,null,null,null,null,null,null,null,"auxiliar.contabilidad1@estelarexpress.co","ESTELAR EXPRESS SAS"]
[null,"",null,null,null,null,null,null,0,null,null,null,null,0,0,"",null,null,null,null,null,0,"",null,null,null,null,null,null,null,null,null,null,null,null,null,null,null,null,null,null,null,null,null,null,null,null,null,null,null,null,null,null,null,null,null,null,null,null,null,null,null,null,null,null,null,null,null,null,null,null,null,null,null,null,null,null,null,null,null,null,null,null,null,null,null,null,null,null,null,null,null,null,null,null,null,null,null,null,null,null,null,null,null,null,null,null,null,null,null,null,null,null,null,null,null,null,null,null,null,null,null,null,null,null,null,null,null,null,null,null,null,null,null,null,null,null,null,null,null,null,null,null,null,null,null,null,null,null,null,null,null,null,null,null,null,null,null,null,null,null,null,null,null,null,null,null,null,null,null,null,null,null,null,null,null,null,null,null,null,null,null,null,null,null,null,null,null,null,null,null,null,null,null,null,null,null,null,null,null,null,null,null,null,null,null,null,null,null,null,null,null,null,null,null,null,null,null,null,null,null,null,null,null,null,null,null,null,null,null,null,null,null,null,null,null,null,null,null,null,null,null,null,null,null,null,null,null,null,null,null,null,null,null,null,null,null,null,null,"asecontributaria2014@hotmail.com","Olga Recalde"]
[null,"",null,null,null,null,null,null,0,null,null,null,null,0,0,"",null,null,null,null,null,0,""]
[null,"",null,null,null,null,null,null,0,null,null,null,null,0,0,"",null,null,null,null,null,0,""]
[null,"",null,null,null,null,null,null,0,null,null,null,null,0,0,"",null,null,null,null,null,0,""]
[null,"",null,null,null,null,null,null,0,null,null,null,null,0,0,"",null,null,null,null,null,0,""]
[null,"",null,null,null,null,null,null,0,null,null,null,null,0,0,"",null,null,null,null,null,0,""]
[null,"",null,null,null,null,null,null,0,null,null,null,null,0,0,"",null,null,null,null,null,0,""]
[null,"",null,null,null,null,null,null,0,null,null,null,null,0,0,"",null,null,null,null,null,0,""]
[null,"",null,null,null,null,null,null,0,null,null,null,null,0,0,"",null,null,null,null,null,0,""]
[null,"",null,null,null,null,null,null,0,null,null,null,null,0,0,"",null,null,null,null,null,0,""]
[null,"",null,null,null,null,null,null,0,null,null,null,null,0,0,"",null,null,null,null,null,0,""]
[null,"",null,null,null,null,null,null,0,null,null,null,null,0,0,"",null,null,null,null,null,0,""]
[null,"",null,null,null,null,null,null,0,null,null,null,null,0,0,"",null,null,null,null,null,0,""]
[null,"",null,null,null,null,null,null,0,null,null,null,null,0,0,"",null,null,null,null,null,0,""]
[null,"",null,null,null,null,null,null,0,null,null,null,null,0,0,"",null,null,null,null,null,0,""]
[null,"",null,null,null,null,null,null,0,null,null,null,null,0,0,"",null,null,null,null,null,0,""]
[null,"",null,null,null,null,null,null,0,null,null,null,null,0,0,"",null,null,null,null,null,0,""]
[null,"",null,null,null,null,null,null,0,null,null,null,null,0,0,"",null,null,null,null,null,0,""]
[null,"",null,null,null,null,null,null,0,null,null,null,null,0,0,"",null,null,null,null,null,0,""]
[null,"",null,null,null,null,null,null,0,null,null,null,null,0,0,"",null,null,null,null,null,0,""]
[null,"",null,null,null,null,null,null,0,null,null,null,null,0,0,"",null,null,null,null,null,0,""]
[null,"",null,null,null,null,null,null,0,null,null,null,null,0,0,"",null,null,null,null,null,0,""]
[null,"",null,null,null,null,null,null,0,null,null,null,null,0,0,"",null,null,null,null,null,0,""]
[null,"",null,null,null,null,null,null,0,null,null,null,null,0,0,"",null,null,null,null,null,0,""]
[null,"",null,null,null,null,null,null,0,null,null,null,null,0,0,"",null,null,null,null,null,0,""]
[null,"",null,null,null,null,null,null,0,null,null,null,null,0,0,"",null,null,null,null,null,0,""]
[null,"",null,null,null,null,null,null,0,null,null,null,null,0,0,"",null,null,null,null,null,0,""]
[null,"",null,null,null,null,null,null,0,null,null,null,null,0,0,"",null,null,null,null,null,0,""]
[null,"",null,null,null,null,null,null,0,null,null,null,null,0,0,"",null,null,null,null,null,0,""]
[null,"",null,null,null,null,null,null,0,null,null,null,null,0,0,"",null,null,null,null,null,0,""]
[null,"",null,null,null,null,null,null,0,null,null,null,null,0,0,"",null,null,null,null,null,0,""]
[null,"",null,null,null,null,null,null,0,null,null,null,null,0,0,"",null,null,null,null,null,0,""]
[null,"",null,null,null,null,null,null,0,null,null,null,null,0,0,"",null,null,null,null,null,0,""]
[null,"",null,null,null,null,null,null,0,null,null,null,null,0,0,"",null,null,null,null,null,0,""]
[null,"",null,null,null,null,null,null,0,null,null,null,null,0,0,"",null,null,null,null,null,0,""]
[null,"",null,null,null,null,null,null,0,null,null,null,null,0,0,"",null,null,null,null,null,0,""]
[null,"",null,null,null,null,null,null,0,null,null,null,null,0,0,"",null,null,null,null,null,0,""]
[null,"",null,null,null,null,null,null,0,null,null,null,null,0,0,"",null,null,null,null,null,0,""]
[null,"",null,null,null,null,null,null,0,null,null,null,null,0,0,"",null,null,null,null,null,0,""]
[null,"",null,null,null,null,null,null,0,null,null,null,null,0,0,"",null,null,null,null,null,0,""]
[null,"",null,null,null,null,null,null,0,null,null,null,null,0,0,"",null,null,null,null,null,0,""]
[null,"",null,null,null,null,null,null,0,null,null,null,null,0,0,"",null,null,null,null,null,0,""]
[null,"",null,null,null,null,null,null,0,null,null,null,null,0,0,"",null,null,null,null,null,0,""]
[null,"",null,null,null,null,null,null,0,null,null,null,null,0,0,"",null,null,null,null,null,0,""]
[null,"",null,null,null,null,null,null,0,null,null,null,null,0,0,"",null,null,null,null,null,0,""]
[null,"",null,null,null,null,null,null,0,null,null,null,null,0,0,"",null,null,null,null,null,0,""]
[null,"",null,null,null,null,null,null,0,null,null,null,null,0,0,"",null,null,null,null,null,0,""]
[null,"",null,null,null,null,null,null,0,null,null,null,null,0,0,"",null,null,null,null,null,0,""]
[null,"",null,null,null,null,null,null,0,null,null,null,null,0,0,"",null,null,null,null,null,0,""]
[null,"",null,null,null,null,null,null,0,null,null,null,null,0,0,"",null,null,null,null,null,0,""]
[null,"",null,null,null,null,null,null,0,null,null,null,null,0,0,"",null,null,null,null,null,0,""]
[null,"",null,null,null,null,null,null,0,null,null,null,null,0,0,"",null,null,null,null,null,0,""]
[null,"",null,null,null,null,null,null,0,null,null,null,null,0,0,"",null,null,null,null,null,0,""]
[null,"",null,null,null,null,null,null,0,null,null,null,null,0,0,"",null,null,null,null,null,0,""]
[null,"",null,null,null,null,null,null,0,null,null,null,null,0,0,"",null,null,null,null,null,0,""]
[null,"",null,null,null,null,null,null,0,null,null,null,null,0,0,"",null,null,null,null,null,0,""]
[null,"",null,null,null,null,null,null,0,null,null,null,null,0,0,"",null,null,null,null,null,0,""]
[null,"",null,null,null,null,null,null,0,null,null,null,null,0,0,"",null,null,null,null,null,0,""]
[null,"",null,null,null,null,null,null,0,null,null,null,null,0,0,"",null,null,null,null,null,0,""]
[null,"",null,null,null,null,null,null,0,null,null,null,null,0,0,"",null,null,null,null,null,0,""]
[null,"",null,null,null,null,null,null,0,null,null,null,null,0,0,"",null,null,null,null,null,0,""]
[null,"",null,null,null,null,null,null,0,null,null,null,null,0,0,"",null,null,null,null,null,0,""]
[null,"",null,null,null,null,null,null,0,null,null,null,null,0,0,"",null,null,null,null,null,0,""]
[null,"",null,null,null,null,null,null,0,null,null,null,null,0,0,"",null,null,null,null,null,0,""]
[null,"",null,null,null,null,null,null,0,null,null,null,null,0,0,"",null,null,null,null,null,0,""]
[null,"",null,null,null,null,null,null,0,null,null,null,null,0,0,"",null,null,null,null,null,0,""]
[null,"",null,null,null,null,null,null,0,null,null,null,null,0,0,"",null,null,null,null,null,0,""]
[null,"",null,null,null,null,null,null,0,null,null,null,null,0,0,"",null,null,null,null,null,0,""]
[null,"",null,null,null,null,null,null,0,null,null,null,null,0,0,"",null,null,null,null,null,0,""]
[null,"",null,null,null,null,null,null,0,null,null,null,null,0,0,"",null,null,null,null,null,0,""]
[null,"",null,null,null,null,null,null,0,null,null,null,null,0,0,"",null,null,null,null,null,0,""]
[null,"",null,null,null,null,null,null,0,null,null,null,null,{"$f":"MOD((VALUE(MID(TEXT(A2054,\"000000000000000\"),15,1))*3+VALUE(MID(TEXT(A2054,\"000000000000000\"),14,1))*7+VALUE(MID(TEXT(A2054,\"000000000000000\"),13,1))*13+VALUE(MID(TEXT(A2054,\"000000000000000\"),12,1))*17+VALUE(MID(TEXT(A2054,\"000000000000000\"),11,1))*19+VALUE(MID(TEXT(A2054,\"000000000000000\"),10,1))*23+VALUE(MID(TEXT(A2054,\"000000000000000\"),9,1))*29+VALUE(MID(TEXT(A2054,\"000000000000000\"),8,1))*37+VALUE(MID(TEXT(A2054,\"000000000000000\"),7,1))*41+VALUE(MID(TEXT(A2054,\"000000000000000\"),6,1))*43+VALUE(MID(TEXT(A2054,\"000000000000000\"),5,1))*47+VALUE(MID(TEXT(A2054,\"000000000000000\"),4,1))*53+VALUE(MID(TEXT(A2054,\"000000000000000\"),3,1))*59+VALUE(MID(TEXT(A2054,\"000000000000000\"),2,1))*67+VALUE(MID(TEXT(A2054,\"000000000000000\"),1,1))*71),11)","v":0},0,{"$f":"IF(H2054=\"REGISTRO ACTIVO\",O2054,\"\")","v":""},null,null,null,null,null,0,""]
[null,"",null,null,null,null,null,null,0,null,null,null,null,0,0,"",null,null,null,null,null,0,""]
[null,"",null,null,null,null,null,null,0,null,null,null,null,0,0,"",null,null,null,null,null,0,""]
[null,"",null,null,null,null,null,null,0,null,null,null,null,0,0,"",null,null,null,null,null,0,""]
[null,"",null,null,null,null,null,null,0,null,null,null,null,0,0,"",null,null,null,null,null,0,""]
[null,"",null,null,null,null,null,null,0,null,null,null,null,0,0,"",null,null,null,null,null,0,""]
[null,"",null,null,null,null,null,null,0,null,null,null,null,0,0,"",null,null,null,null,null,0,""]
[null,"",null,null,null,null,null,null,0,null,null,null,null,0,0,"",null,null,null,null,null,0,""]
[null,"",null,null,null,null,null,null,0,null,null,null,null,0,0,"",null,null,null,null,null,0,""]
[null,"",null,null,null,null,null,null,0,null,null,null,null,0,0,"",null,null,null,null,null,0,""]
[null,"",null,null,null,null,null,null,0,null,null,null,null,0,0,"",null,null,null,null,null,0,""]
[null,"",null,null,null,null,null,null,0,null,null,null,null,0,0,"",null,null,null,null,null,0,""]
[null,"",null,null,null,null,null,null,0,null,null,null,null,0,0,"",null,null,null,null,null,0,""]
[null,"",null,null,null,null,null,null,0,null,null,null,null,0,0,"",null,null,null,null,null,0,""]
[null,"",null,null,null,null,null,null,0,null,null,null,null,0,0,"",null,null,null,null,null,0,""]
[null,"",null,null,null,null,null,null,0,null,null,null,null,0,0,"",null,null,null,null,null,0,""]
[null,"",null,null,null,null,null,null,0,null,null,null,null,0,0,"",null,null,null,null,null,0,""]
[null,"",null,null,null,null,null,null,0,null,null,null,null,0,0,"",null,null,null,null,null,0,""]
[null,"",null,null,null,null,null,null,0,null,null,null,null,0,0,"",null,null,null,null,null,0,""]
[null,"",null,null,null,null,null,null,0,null,null,null,null,0,0,"",null,null,null,null,null,0,""]
[null,"",null,null,null,null,null,null,0,null,null,null,null,0,0,"",null,null,null,null,null,0,""]
[null,"",null,null,null,null,null,null,0,null,null,null,null,0,0,"",null,null,null,null,null,0,""]
[null,"",null,null,null,null,null,null,0,null,null,null,null,0,0,"",null,null,null,null,null,0,""]
[null,"",null,null,null,null,null,null,0,null,null,null,null,0,0,"",null,null,null,null,null,0,""]
[null,"",null,null,null,null,null,null,0,null,null,null,null,0,0,"",null,null,null,null,null,0,""]
[null,"",null,null,null,null,null,null,0,null,null,null,null,0,0,"",null,null,null,null,null,0,""]
[null,"",null,null,null,null,null,null,0,null,null,null,null,0,0,"",null,null,null,null,null,0,""]
[null,"",null,null,null,null,null,null,0,null,null,null,null,0,0,"",null,null,null,null,null,0,""]
[null,"",null,null,null,null,null,null,0,null,null,null,null,0,0,"",null,null,null,null,null,0,""]
[null,"",null,null,null,null,null,null,0,null,null,null,null,0,0,"",null,null,null,null,null,0,""]
[null,"",null,null,null,null,null,null,0,null,null,null,null,0,0,"",null,null,null,null,null,0,""]
[null,"",null,null,null,null,null,null,0,null,null,null,null,0,0,"",null,null,null,null,null,0,""]
[null,"",null,null,null,null,null,null,0,null,null,null,null,0,0,"",null,null,null,null,null,0,""]
[null,"",null,null,null,null,null,null,0,null,null,null,null,0,0,"",null,null,null,null,null,0,""]
[null,"",null,null,null,null,null,null,0,null,null,null,null,0,0,"",null,null,null,null,null,0,""]
[null,"",null,null,null,null,null,null,0,null,null,null,null,0,0,"",null,null,null,null,null,0,""]
[null,"",null,null,null,null,null,null,0,null,null,null,null,0,0,"",null,null,null,null,null,0,""]
[null,"",null,null,null,null,null,null,0,null,null,null,null,0,0,"",null,null,null,null,null,0,""]
[null,"",null,null,null,null,null,null,0,null,null,null,null,0,0,"",null,null,null,null,null,0,""]
[null,"",null,null,null,null,null,null,0,null,null,null,null,0,0,"",null,null,null,null,null,0,""]
[null,"",null,null,null,null,null,null,0,null,null,null,null,0,0,"",null,null,null,null,null,0,""]
[null,"",null,null,null,null,null,null,0,null,null,null,null,0,0,"",null,null,null,null,null,0,""]
[null,"",null,null,null,null,null,null,0,null,null,null,null,0,0,"",null,null,null,null,null,0,""]
[null,"",null,null,null,null,null,null,0,null,null,null,null,0,0,"",null,null,null,null,null,0,""]
[null,"",null,null,null,null,null,null,0,null,null,null,null,0,0,"",null,null,null,null,null,0,""]
[null,"",null,null,null,null,null,null,0,null,null,null,null,0,0,"",null,null,null,null,null,0,""]
[null,"",null,null,null,null,null,null,0,null,null,null,null,0,0,"",null,null,null,null,null,0,""]
[null,"",null,null,null,null,null,null,0,null,null,null,null,0,0,"",null,null,null,null,null,0,""]
[null,"",null,null,null,null,null,null,0,null,null,null,null,0,0,"",null,null,null,null,null,0,""]
[null,"",null,null,null,null,null,null,0,null,null,null,null,0,0,"",null,null,null,null,null,0,""]
[null,"",null,null,null,null,null,null,0,null,null,null,null,0,0,"",null,null,null,null,null,0,""]
[null,"",null,null,null,null,null,null,0,null,null,null,null,0,0,"",null,null,null,null,null,0,""]
[null,"",null,null,null,null,null,null,0,null,null,null,null,0,0,"",null,null,null,null,null,0,""]
[null,"",null,null,null,null,null,null,0,null,null,null,null,0,0,"",null,null,null,null,null,0,""]
[null,"",null,null,null,null,null,null,0,null,null,null,null,0,0,"",null,null,null,null,null,0,""]
[null,"",null,null,null,null,null,null,0,null,null,null,null,0,0,"",null,null,null,null,null,0,""]
[null,"",null,null,null,null,null,null,0,null,null,null,null,0,0,"",null,null,null,null,null,0,""]
[null,"",null,null,null,null,null,null,0,null,null,null,null,0,0,"",null,null,null,null,null,0,""]
[null,"",null,null,null,null,null,null,0,null,null,null,null,0,0,"",null,null,null,null,null,0,""]
[null,"",null,null,null,null,null,null,0,null,null,null,null,0,0,"",null,null,null,null,null,0,""]
[null,"",null,null,null,null,null,null,0,null,null,null,null,0,0,"",null,null,null,null,null,0,""]
[null,"",null,null,null,null,null,null,0,null,null,null,null,0,0,"",null,null,null,null,null,0,""]
[null,"",null,null,null,null,null,null,0,null,null,null,null,0,0,"",null,null,null,null,null,0,""]
[null,"",null,null,null,null,null,null,0,null,null,null,null,0,0,"",null,null,null,null,null,0,""]
[null,"",null,null,null,null,null,null,0,null,null,null,null,0,0,"",null,null,null,null,null,0,""]
[null,"",null,null,null,null,null,null,0,null,null,null,null,0,0,"",null,null,null,null,null,0,""]
[null,"",null,null,null,null,null,null,0,null,null,null,null,0,0,"",null,null,null,null,null,0,""]
[null,"",null,null,null,null,null,null,0,null,null,null,null,0,0,"",null,null,null,null,null,0,""]
[null,"",null,null,null,null,null,null,0,null,null,null,null,0,0,"",null,null,null,null,null,0,""]
[null,"",null,null,null,null,null,null,0,null,null,null,null,0,0,"",null,null,null,null,null,0,""]
[null,"",null,null,null,null,null,null,0,null,null,null,null,0,0,"",null,null,null,null,null,0,""]
[null,"",null,null,null,null,null,null,0,null,null,null,null,0,0,"",null,null,null,null,null,0,""]
[null,"",null,null,null,null,null,null,0,null,null,null,null,0,0,"",null,null,null,null,null,0,""]
[null,"",null,null,null,null,null,null,0,null,null,null,null,0,0,"",null,null,null,null,null,0,""]
[null,"",null,null,null,null,null,null,0,null,null,null,null,0,0,"",null,null,null,null,null,0,""]
[null,"",null,null,null,null,null,null,0,null,null,null,null,0,0,"",null,null,null,null,null,0,""]
[null,"",null,null,null,null,null,null,0,null,null,null,null,0,0,"",null,null,null,null,null,0,""]
[null,"",null,null,null,null,null,null,0,null,null,null,null,0,0,"",null,null,null,null,null,0,""]
[null,"",null,null,null,null,null,null,0,null,null,null,null,0,0,"",null,null,null,null,null,0,""]
[null,"",null,null,null,null,null,null,0,null,null,null,null,0,0,"",null,null,null,null,null,0,""]
[null,"",null,null,null,null,null,null,0,null,null,null,null,0,0,"",null,null,null,null,null,0,""]
[null,"",null,null,null,null,null,null,0,null,null,null,null,0,0,"",null,null,null,null,null,0,""]
[null,"",null,null,null,null,null,null,0,null,null,null,null,0,0,"",null,null,null,null,null,0,""]
[null,"",null,null,null,null,null,null,0,null,null,null,null,0,0,"",null,null,null,null,null,0,""]
[null,"",null,null,null,null,null,null,0,null,null,null,null,0,0,"",null,null,null,null,null,0,""]
[null,"",null,null,null,null,null,null,0,null,null,null,null,0,0,"",null,null,null,null,null,0,""]
[null,"",null,null,null,null,null,null,0,null,null,null,null,0,0,"",null,null,null,null,null,0,""]
[null,"",null,null,null,null,null,null,0,null,null,null,null,0,0,"",null,null,null,null,null,0,""]
[null,"",null,null,null,null,null,null,0,null,null,null,null,0,0,"",null,null,null,null,null,0,""]
[null,"",null,null,null,null,null,null,0,null,null,null,null,0,0,"",null,null,null,null,null,0,""]
[null,"",null,null,null,null,null,null,0,null,null,null,null,0,0,"",null,null,null,null,null,0,""]
[null,"",null,null,null,null,null,null,0,null,null,null,null,0,0,"",null,null,null,null,null,0,""]
[null,"",null,null,null,null,null,null,0,null,null,null,null,0,0,"",null,null,null,null,null,0,""]
[null,"",null,null,null,null,null,null,0,null,null,null,null,0,0,"",null,null,null,null,null,0,""]
[null,"",null,null,null,null,null,null,0,null,null,null,null,0,0,"",null,null,null,null,null,0,""]
[null,"",null,null,null,null,null,null,0,null,null,null,null,0,0,"",null,null,null,null,null,0,""]
[null,"",null,null,null,null,null,null,0,null,null,null,null,0,0,"",null,null,null,null,null,0,""]
[null,"",null,null,null,null,null,null,0,null,null,null,null,0,0,"",null,null,null,null,null,0,""]
[null,"",null,null,null,null,null,null,0,null,null,null,null,0,0,"",null,null,null,null,null,0,""]
[null,"",null,null,null,null,null,null,0,null,null,null,null,0,0,"",null,null,null,null,null,0,""]
[null,"",null,null,null,null,null,null,0,null,null,null,null,0,0,"",null,null,null,null,null,0,""]
[null,"",null,null,null,null,null,null,0,null,null,null,null,0,0,"",null,null,null,null,null,0,""]
[null,"",null,null,null,null,null,null,0,null,null,null,null,0,0,"",null,null,null,null,null,0,""]
[null,"",null,null,null,null,null,null,0,null,null,null,null,0,0,"",null,null,null,null,null,0,""]
[null,"",null,null,null,null,null,null,0,null,null,null,null,0,0,"",null,null,null,null,null,0,""]
[null,"",null,null,null,null,null,null,0,null,null,null,null,0,0,"",null,null,null,null,null,0,""]
[null,"",null,null,null,null,null,null,0,null,null,null,null,0,0,"",null,null,null,null,null,0,""]
[null,"",null,null,null,null,null,null,0,null,null,null,null,0,0,"",null,null,null,null,null,0,""]
[null,"",null,null,null,null,null,null,0,null,null,null,null,0,0,"",null,null,null,null,null,0,""]
[null,"",null,null,null,null,null,null,0,null,null,null,null,0,0,"",null,null,null,null,null,0,""]
[null,"",null,null,null,null,null,null,0,null,null,null,null,0,0,"",null,null,null,null,null,0,""]
[null,"",null,null,null,null,null,null,0,null,null,null,null,0,0,"",null,null,null,null,null,0,""]
[null,"",null,null,null,null,null,null,0,null,null,null,null,0,0,"",null,null,null,null,null,0,""]
[null,"",null,null,null,null,null,null,0,null,null,null,null,0,0,"",null,null,null,null,null,0,""]
[null,"",null,null,null,null,null,null,0,null,null,null,null,0,0,"",null,null,null,null,null,0,""]
[null,"",null,null,null,null,null,null,0,null,null,null,null,0,0,"",null,null,null,null,null,0,""]
[null,"",null,null,null,null,null,null,0,null,null,null,null,0,0,"",null,null,null,null,null,0,""]
[null,"",null,null,null,null,null,null,0,null,null,null,null,0,0,"",null,null,null,null,null,0,""]
[null,"",null,null,null,null,null,null,0,null,null,null,null,0,0,"",null,null,null,null,null,0,""]
[null,"",null,null,null,null,null,null,0,null,null,null,null,0,0,"",null,null,null,null,null,0,""]
[null,"",null,null,null,null,null,null,0,null,null,null,null,0,0,"",null,null,null,null,null,0,""]
[null,"",null,null,null,null,null,null,0,null,null,null,null,0,0,"",null,null,null,null,null,0,""]
[null,"",null,null,null,null,null,null,0,null,null,null,null,0,0,"",null,null,null,null,null,0,""]
[null,"",null,null,null,null,null,null,0,null,null,null,null,0,0,"",null,null,null,null,null,0,""]
[null,"",null,null,null,null,null,null,0,null,null,null,null,0,0,"",null,null,null,null,null,0,""]
[null,"",null,null,null,null,null,null,0,null,null,null,null,0,0,"",null,null,null,null,null,0,""]
[null,"",null,null,null,null,null,null,0,null,null,null,null,0,0,"",null,null,null,null,null,0,""]
[null,"",null,null,null,null,null,null,0,null,null,null,null,0,0,"",null,null,null,null,null,0,""]
[null,"",null,null,null,null,null,null,0,null,null,null,null,0,0,"",null,null,null,null,null,0,""]
[null,"",null,null,null,null,null,null,0,null,null,null,null,0,0,"",null,null,null,null,null,0,""]
[null,"",null,null,null,null,null,null,0,null,null,null,null,0,0,"",null,null,null,null,null,0,""]
[null,"",null,null,null,null,null,null,0,null,null,null,null,0,0,"",null,null,null,null,null,0,""]
[null,"",null,null,null,null,null,null,0,null,null,null,null,0,0,"",null,null,null,null,null,0,""]
[null,"",null,null,null,null,null,null,0,null,null,null,null,0,0,"",null,null,null,null,null,0,""]
[null,"",null,null,null,null,null,null,0,null,null,null,null,0,0,"",null,null,null,null,null,0,""]
[null,"",null,null,null,null,null,null,0,null,null,null,null,0,0,"",null,null,null,null,null,0,""]
[null,"",null,null,null,null,null,null,0,null,null,null,null,0,0,"",null,null,null,null,null,0,""]
[null,"",null,null,null,null,null,null,0,null,null,null,null,0,0,"",null,null,null,null,null,0,""]
[null,"",null,null,null,null,null,null,0,null,null,null,null,0,0,"",null,null,null,null,null,0,""]
[null,"",null,null,null,null,null,null,0,null,null,null,null,0,0,"",null,null,null,null,null,0,""]
[null,"",null,null,null,null,null,null,0,null,null,null,null,0,0,"",null,null,null,null,null,0,""]
[null,"",null,null,null,null,null,null,0,null,null,null,null,0,0,"",null,null,null,null,null,0,""]
[null,"",null,null,null,null,null,null,0,null,null,null,null,0,0,"",null,null,null,null,null,0,""]
[null,"",null,null,null,null,null,null,0,null,null,null,null,0,0,"",null,null,null,null,null,0,""]
[null,"",null,null,null,null,null,null,0,null,null,null,null,0,0,"",null,null,null,null,null,0,""]
[null,"",null,null,null,null,null,null,0,null,null,null,null,0,0,"",null,null,null,null,null,0,""]
[null,"",null,null,null,null,null,null,0,null,null,null,null,0,0,"",null,null,null,null,null,0,""]
[null,"",null,null,null,null,null,null,0,null,null,null,null,0,0,"",null,null,null,null,null,0,""]
[null,"",null,null,null,null,null,null,0,null,null,null,null,0,0,"",null,null,null,null,null,0,""]
[null,"",null,null,null,null,null,null,0,null,null,null,null,0,0,"",null,null,null,null,null,0,""]
[null,"",null,null,null,null,null,null,0,null,null,null,null,0,0,"",null,null,null,null,null,0,""]
[null,"",null,null,null,null,null,null,0,null,null,null,null,0,0,"",null,null,null,null,null,0,""]
[null,"",null,null,null,null,null,null,0,null,null,null,null,0,0,"",null,null,null,null,null,0,""]
[null,"",null,null,null,null,null,null,0,null,null,null,null,0,0,"",null,null,null,null,null,0,""]
[null,"",null,null,null,null,null,null,0,null,null,null,null,0,0,"",null,null,null,null,null,0,""]
[null,"",null,null,null,null,null,null,0,null,null,null,null,0,0,"",null,null,null,null,null,0,""]
[null,"",null,null,null,null,null,null,0,null,null,null,null,0,0,"",null,null,null,null,null,0,""]
[null,"",null,null,null,null,null,null,0,null,null,null,null,0,0,"",null,null,null,null,null,0,""]
[null,"",null,null,null,null,null,null,0,null,null,null,null,0,0,"",null,null,null,null,null,0,""]
[null,"",null,null,null,null,null,null,0,null,null,null,null,0,0,"",null,null,null,null,null,0,""]
[null,"",null,null,null,null,null,null,0,null,null,null,null,0,0,"",null,null,null,null,null,0,""]
[null,"",null,null,null,null,null,null,0,null,null,null,null,0,0,"",null,null,null,null,null,0,""]
[null,"",null,null,null,null,null,null,0,null,null,null,null,0,0,"",null,null,null,null,null,0,""]
[null,"",null,null,null,null,null,null,0,null,null,null,null,0,0,"",null,null,null,null,null,0,""]
[null,"",null,null,null,null,null,null,0,null,null,null,null,0,0,"",null,null,null,null,null,0,""]
[null,"",null,null,null,null,null,null,0,null,null,null,null,0,0,"",null,null,null,null,null,0,""]
[null,"",null,null,null,null,null,null,0,null,null,null,null,0,0,"",null,null,null,null,null,0,""]
[null,"",null,null,null,null,null,null,0,null,null,null,null,0,0,"",null,null,null,null,null,0,""]
[null,"",null,null,null,null,null,null,0,null,null,null,null,0,0,"",null,null,null,null,null,0,""]
[null,"",null,null,null,null,null,null,0,null,null,null,null,0,0,"",null,null,null,null,null,0,""]
[null,"",null,null,null,null,null,null,0,null,null,null,null,0,0,"",null,null,null,null,null,0,""]
[null,"",null,null,null,null,null,null,0,null,null,null,null,0,0,"",null,null,null,null,null,0,""]
[null,"",null,null,null,null,null,null,0,null,null,null,null,0,0,"",null,null,null,null,null,0,""]
[null,"",null,null,null,null,null,null,0,null,null,null,null,0,0,"",null,null,null,null,null,0,""]
[null,"",null,null,null,null,null,null,0,null,null,null,null,0,0,"",null,null,null,null,null,0,""]
[null,"",null,null,null,null,null,null,0,null,null,null,null,0,0,"",null,null,null,null,null,0,""]
[null,"",null,null,null,null,null,null,0,null,null,null,null,0,0,"",null,null,null,null,null,0,""]
[null,"",null,null,null,null,null,null,0,null,null,null,null,0,0,"",null,null,null,null,null,0,""]
[null,"",null,null,null,null,null,null,0,null,null,null,null,0,0,"",null,null,null,null,null,0,""]
[null,"",null,null,null,null,null,null,0,null,null,null,null,0,0,"",null,null,null,null,null,0,""]
[null,"",null,null,null,null,null,null,0,null,null,null,null,0,0,"",null,null,null,null,null,0,""]
[null,"",null,null,null,null,null,null,0,null,null,null,null,0,0,"",null,null,null,null,null,0,""]
[null,"",null,null,null,null,null,null,0,null,null,null,null,0,0,"",null,null,null,null,null,0,""]
[null,"",null,null,null,null,null,null,0,null,null,null,null,0,0,"",null,null,null,null,null,0,""]
[null,"",null,null,null,null,null,null,0,null,null,null,null,0,0,"",null,null,null,null,null,0,""]
[null,"",null,null,null,null,null,null,0,null,null,null,null,0,0,"",null,null,null,null,null,0,""]
[null,"",null,null,null,null,null,null,0,null,null,null,null,0,0,"",null,null,null,null,null,0,""]
[null,"",null,null,null,null,null,null,0,null,null,null,null,0,0,"",null,null,null,null,null,0,""]
[null,"",null,null,null,null,null,null,0,null,null,null,null,0,0,"",null,null,null,null,null,0,""]
[null,"",null,null,null,null,null,null,0,null,null,null,null,0,0,"",null,null,null,null,null,0,""]
[null,"",null,null,null,null,null,null,0,null,null,null,null,0,0,"",null,null,null,null,null,0,""]
[null,"",null,null,null,null,null,null,0,null,null,null,null,0,0,"",null,null,null,null,null,0,""]
[null,"",null,null,null,null,null,null,0,null,null,null,null,0,0,"",null,null,null,null,null,0,""]
[null,"",null,null,null,null,null,null,0,null,null,null,null,0,0,"",null,null,null,null,null,0,""]
[null,"",null,null,null,null,null,null,0,null,null,null,null,0,0,"",null,null,null,null,null,0,""]
[null,"",null,null,null,null,null,null,0,null,null,null,null,0,0,"",null,null,null,null,null,0,""]
[null,"",null,null,null,null,null,null,0,null,null,null,null,0,0,"",null,null,null,null,null,0,""]
[null,"",null,null,null,null,null,null,0,null,null,null,null,0,0,"",null,null,null,null,null,0,""]
[null,"",null,null,null,null,null,null,0,null,null,null,null,0,0,"",null,null,null,null,null,0,""]
[null,"",null,null,null,null,null,null,0,null,null,null,null,{"$f":"MOD((VALUE(MID(TEXT(A4998,\"000000000000000\"),15,1))*3+VALUE(MID(TEXT(A4998,\"000000000000000\"),14,1))*7+VALUE(MID(TEXT(A4998,\"000000000000000\"),13,1))*13+VALUE(MID(TEXT(A4998,\"000000000000000\"),12,1))*17+VALUE(MID(TEXT(A4998,\"000000000000000\"),11,1))*19+VALUE(MID(TEXT(A4998,\"000000000000000\"),10,1))*23+VALUE(MID(TEXT(A4998,\"000000000000000\"),9,1))*29+VALUE(MID(TEXT(A4998,\"000000000000000\"),8,1))*37+VALUE(MID(TEXT(A4998,\"000000000000000\"),7,1))*41+VALUE(MID(TEXT(A4998,\"000000000000000\"),6,1))*43+VALUE(MID(TEXT(A4998,\"000000000000000\"),5,1))*47+VALUE(MID(TEXT(A4998,\"000000000000000\"),4,1))*53+VALUE(MID(TEXT(A4998,\"000000000000000\"),3,1))*59+VALUE(MID(TEXT(A4998,\"000000000000000\"),2,1))*67+VALUE(MID(TEXT(A4998,\"000000000000000\"),1,1))*71),11)","v":0},0,{"$f":"IF(H4998=\"REGISTRO ACTIVO\",O4998,\"\")","v":""},null,null,null,null,null,0,""]
[null,{"$f":"+P4999","v":""},null,null,null,null,null,null,{"$f":"IF(H4999=\"REGISTRO ACTIVO\",1,0)","v":0},null,null,null,null,0,{"$f":"IF(N4999=0,0,IF(N4999=1,1,11-N4999))","v":0},"",null,null,null,null,null,{"$f":"IF(H4999=\"\",0,1)","v":0},{"$f":"IF(AND(A4999>0,H4999=\"\",$V$5007>0),\"NO\",\"\")","v":""}]
[null,"",null,null,null,null,null,null,0,null,null,null,null,0,0,"",null,null,null,null,null,0,""]
[null,"",null,null,null,null,null,null,0,null,null,null,null,0,0,"",null,null,null,null,null,0,""]
[null,"",null,null,null,null,null,null,0,null,null,null,null,0,0,"",null,null,null,null,null,0,""]
[null,"",null,null,null,null,null,null,0,null,null,null,null,0,0,"",null,null,null,null,null,0,""]
[null,"",null,null,null,null,null,null,0,null,null,null,null,0,0,"",null,null,null,null,null,0,""]
[null,"",null,null,null,null,null,null,0,null,null,null,null,0,0,"",null,null,null,null,null,0,""]
[null,"",null,null,null,null,null,null,0,null,null,null,null,0,0,"",null,null,null,null,null,0,""]
["X","X","X","X","X","X","X",null,null,null,null,null,null,"X","X","X",null,null,null,null,null,{"$f":"SUM(V6:V5006)","v":0}]
[]
[]
[]
[]
[]
[]
[]
[null,null,null,null,null,null,null,"x"]

{"sheet":"Información","index":1,"n_rows":19,"n_cols":9,"rows_kept":19,"cut":false,"hidden":false,"merged":[[3,2,3,10],[4,2,4,10]]}
[]
[null,null,"Información de la herramienta:"]
[null,null,"Esta es una herramienta para  confirmar si un numero de documento, cedula o NIT,  está registrado en el RUT de la DIAN"]
[null,null,"Al dar clic en el boton procesar, el aplicativo se conecta con la base de datos de la DIAN y trae los nombres y razón social, y por tanto se determina si el tercero tiene RUT."]
[null,null," Usted podrá realizar el proceso por cada tercero directamente en la web oficial de la DIAN en el siguiente enlace\n"]
[null,null,"Dado lo anterior, lo que hace esta herramienta es realizar la consulta de manera masiva para los números de documentos que quiera verificar."]
[null,null,"En pruebas realizadas, el aplicativo consulta 100 documentos en 70 segundos en promedio, el tiempo dependerá de la velocidad de su equipo y de internet."]
[null,null,"Si requiere consultar grandes cantidades de documentos, recomendable hacerlo de 500 en 500 por proceso. "]
[null,null,"Lo que debe hacer es digitar o copiar los números de documentos en la columna NIT y dar clic en el botón \"Procesar\""]
[null,null,"Se recomienda mientras se está realizando la búsqueda, no tener más archivos abiertos del Excel para que el proceso corra lo más rápido posible."]
[null,null,"El aplicativo emitirá un mensaje cuando finalice la búsqueda."]
[]
[]
[]
[]
[null,null,"Autor:"]
[null,null,"Wilmer Cordoba Trujillo",null,null,null,null,null,"Prohibida su circulación. Uso exclusivo de el adquiriente de la licencia"]
[null,null,"William Dussan Salazar",null,null,null,null,null,"Este producto tiene costo."]
[null,null,"Derechos Reservados 2021"]

{"sheet":"REG","index":2,"n_rows":8,"n_cols":3,"rows_kept":8,"cut":false,"hidden":false,"merged":[]}
[]
[]
[null,"NUMERO","LICENCIA"]
[null,0,"5648-6589-587"]
[null,1,5235]
[null,2]
[null,3]
[null,4]